{"text_format":"3","workbook":"xlsx","n_sheets":8,"sheets":["1. razred fermioni","1. razred bozoni","2. razred fermioni","2. razred bozoni","3. razred fermioni","3. razred bozoni","4. razred fermioin","4. razred bozoni"],"read":"whole","date_system":"1900"}

{"sheet":"1. razred fermioni","index":0,"n_rows":315,"n_cols":12,"rows_kept":315,"merged":[[0,0,0,12],[3,0,3,2],[4,6,4,11]]}
["ПРВИ  РАЗРЕД ФЕРМИОНИ"]
[]
[]
[]
[{"$nulls":6},"Освојено бодова (ненормираних)"]
["Име и презиме","посебно\nодељење\n(ДА / НЕ)","Назив школе","Место","Име и презиме\nнаставника","Зад.1","Зад.2","Зад.3","Зад.4","Зад.5","Ук.","Награда"]
["Давид Милинковић","не","Шабачка гимназија","Шабац","Снежана Вуковић",20,20,20,20,20,{"$f":"SUM(F7:J7)","v":100}]
["Алекса Робавс","не","Гимназија \"Светозар Марковић\"","Ниш","Драгана Јеленковић",{"v":20,"d":"20.0"},{"v":20,"d":"20.0"},{"v":20,"d":"20.0"},{"v":20,"d":"20.0"},{"v":20,"d":"20.0"},100]
["Никола Димић","не","Гимназија \"Светозар Марковић\"","Ниш","Драгана Јеленковић",{"v":20,"d":"20.0"},{"v":20,"d":"20.0"},{"v":20,"d":"20.0"},{"v":20,"d":"20.0"},{"v":20,"d":"20.0"},100]
["Павле Јаневски","не","Гимназија ''Бора Станковић''","Ниш","Лазар Раденковић",{"v":20,"d":"20.0"},{"v":20,"d":"20.0"},{"v":20,"d":"20.0"},{"v":20,"d":"20.0"},{"v":20,"d":"20.0"},100]
["Владан Васић","не","Гимназија Пирот","Пирот","Нина Јовановић",20,20,20,20,20,100]
["Анђела Бешир","НЕ","Гимназија Зајечар","Зајечар","Младен Шљивовић",20,20,20,20,20,100]
["Страхиња Секулић","НЕ","Гимназија \"Вељко Петровић\"","Сомбор","Љиљана Мијатовић",20,20,20,20,20,100]
["Златан Васовић","не","Гимназија","Чачак","Ирена Симовић",20,20,20,20,16,96]
["Вукосављевић Кристина","не","Гимназија","Лозница","Ристановић Мирослав",20,20,15,19,20,94]
["Јована Костић","НЕ","Гимназија \"Вељко Петровић\"","Сомбор","Љиљана Мијатовић",20,14,20,20,20,94]
["Никола Савић","не","Шабачка гимназија","Шабац","Снежана Вуковић",20,11,20,20,20,91]
["Мина Петровић","не","Гимназија ''Бора Станковић''","Ниш","Лазар Раденковић",{"v":20,"d":"20.0"},{"v":11,"d":"11.0"},{"v":20,"d":"20.0"},{"v":20,"d":"20.0"},{"v":20,"d":"20.0"},91]
["Лука Зороје","не","Гимназија \"Милош Савковић\"","Аранђеловац","Далибор Делибашић",20,12,19,20,20,91]
["Ђорђе Момчиловић","не","Гимназија \"Милош Савковић\"","Аранђеловац","Далибор Делибашић",20,11,20,20,20,91]
["Едвард Габријел Етински ","не","Гимназија \"Урош Предић\"","Панчево","Јасмина Ћосић ",20,20,10,20,20,90]
["Милица Ђорђевић","не","Шабачка гимназија","Шабац","Маја Катанић",20,20,10,20,20,90]
["Невена Глигоров","НЕ","ЕСТШ \"Никола Тесла\"","Краљево","Драгана Милуновић",20,20,10,20,20,90]
["Стефан Букоровић","не","Шабачка гимназија","Шабац","Снежана Вуковић",20,10,18,20,19,87]
["Матеја Вршка","НЕ","Гимназија Зајечар","Зајечар","Младен Шљивовић",20,11,18,19,19,87]
["Милош Милинковић","не","Шабачка гимназија","Шабац","Снежана Вуковић",20,8.5,20,18,20,86.5]
["Ђорђе Сабатуш","НЕ","Гимназија „Ј.Ј. Змај“","Нови Сад","Златко Штрбац",20,6,20,20,20,86]
["Милена Вујчић","не","Гимназија Параћин","Параћин","Предраг Милошевић",6,20,20,20,20,86]
["Марко Стојановић","не","Гимназија Параћин","Параћин","Предраг Милошевић",6,20,20,20,20,86]
["Милица Урошевић","не","Прва крагујевачка гимназија","Крагујевац","Ана Жлибар",18.5,11,18,20,18,85.5]
["Марко Стеванетић","не","Тринаеста београдска гимназија","Београд","Љиљана Марковоћ",20,20,6,20,19,85]
["Марко Миладиновић","не","Гимназија \"Светозар Марковић\"","Ниш","Драгана Јеленковић",{"v":20,"d":"20.0"},{"v":5,"d":"5.0"},{"v":20,"d":"20.0"},{"v":20,"d":"20.0"},{"v":20,"d":"20.0"},85]
["Маша Раденковић","не","Гимназија ''Бора Станковић''","Ниш","Лазар Раденковић",{"v":15,"d":"15.0"},{"v":10,"d":"10.0"},{"v":20,"d":"20.0"},{"v":20,"d":"20.0"},{"v":20,"d":"20.0"},85]
["Јована С. Стојановић","не","Гимназија ''Бора Станковић''","Ниш","Лазар Раденковић",{"v":20,"d":"20.0"},{"v":11,"d":"11.0"},{"v":20,"d":"20.0"},{"v":12,"d":"12.0"},{"v":20,"d":"20.0"},83]
["Сања Милосављевић","не","VI београдска гимназија","Београд","Тијана Маринковић",20,20,10,18,15,83]
["Наталија Нешковић","не","Шабачка гимназија","Шабац","Маја Катанић",20,20,10,20,11,81]
["Наталија Павловић","не","Гимназија ''Бора Станковић''","Ниш","Снежана Јанковић",{"v":20,"d":"20.0"},{"v":5,"d":"5.0"},{"v":20,"d":"20.0"},{"v":17,"d":"17.0"},{"v":19,"d":"19.0"},81]
["Марија Бркић","не","Тринаеста београдска гимназија","Београд","Љиљана Марковоћ",20,20,0,20,20,80]
["Ангелина Димитријевић","не","Гимназија \"Бора Станковић\"","Бор","Горан Марковић",20,0,20,20,20,80]
["Никола Златановић","НЕ","Гимназија","Велика Плана","Драган Николић",20,5,20,20,15,80]
["Аница Панић","не","Средња школа Свилајнац","Свилајнац","Ратомир Савић",12,10,20,20,18,80]
["Петар Васиљевић","НЕ","Гимназија Зајечар","Зајечар","Младен Шљивовић",20,15.8,14,10,20,79.8]
["Дејан Хасковић","не","VI београдска гимназија","Београд","Тијана Маринковић",20,20,0,20,19,79]
["Анастасија Ракић","не","Гимназија Крушевац","Крушевац","Иван Зорнић",20,5,20,14,20,79]
["Лука Савановић","не","Прва београдска гимназија","Београд","Чедо Шкорић",20,20,0,17,20,77]
["Мирослав Поповић","не","Прва београдска гимназија","Београд","Светлана Дамјановић",20,20,2,14,20,76]
["Душан Костић","НЕ","Митровачка гимназија","Ср. Митровица","Јанко Јовановић",20,6,10,20,20,76]
["Бојана Малешевић","не","Прва крагујевачка гимназија","Крагујевац","Сузана Арнаут",20,10,20,5,20,75]
["Жарко Булић","не","3. гимназија","Београд","Светлана Бабић",20,5,10,20,19,74]
["Бранко Грбић","НЕ","Гимназија Зајечар","Зајечар","Младен Шљивовић",20,20,3,20,11,74]
["Михаило Павловић","не","Шабачка гимназија","Шабац","Маја Катанић",20,3,10,20,20,73]
["Аранђел Бакурски ","не","Гимназија \"Урош Предић\"","Панчево","Миленко Дабић ",20,3,10,20,20,73]
["Михаило Петровић","НЕ","Гимназија Зајечар","Зајечар","Младен Шљивовић",20,15.8,0,16.4,20,72.19999999999999]
["Тијана Коцић","не","Гимназија ''Бора Станковић''","Ниш","Лазар Раденковић",{"v":20,"d":"20.0"},{"v":5,"d":"5.0"},{"v":10,"d":"10.0"},{"v":20,"d":"20.0"},{"v":17,"d":"17.0"},72]
["Ива Величковић","НЕ","Гимназија Зајечар","Зајечар","Младен Шљивовић",20,4,20,17,11,72]
["Иван Јевтић","не","Рачунарска гимназија","Београд","Наташа Чалуковић",20,10,2,20,20,72]
["Богдан Мицић","не","Гимназија ''Бора Станковић''","Ниш","Лазар Раденковић",{"v":6,"d":"6.0"},{"v":5,"d":"5.0"},{"v":20,"d":"20.0"},{"v":20,"d":"20.0"},{"v":20,"d":"20.0"},71]
["Зои Бизетић","не","IX гимназија “Михаило Петровић – Алас”","Београд","Саша Цупаћ",20,0,10,20,20,70]
["Александар Миљковић","не","Гимназија ''Бора Станковић''","Ниш","Снежана Јанковић",{"v":20,"d":"20.0"},{"v":5,"d":"5.0"},{"v":20,"d":"20.0"},{"v":5,"d":"5.0"},{"v":20,"d":"20.0"},70]
["Павле Станковић","не","Гимназија Крушевац","Крушевац","Иван Зорнић",20,5,10,20,15,70]
["Димитрије Матовић","НЕ","Гимназија","Краљево","Предраг Савић",20,10,10,20,10,70]
["Борис Маринковић","не","Шабачка гимназија","Шабац","Снежана Вуковић",20,10,0,20,19,69]
["Никола Павловић","не","Гимназија \"Светозар Марковић\"","Јагодина","Славица Тодоровић",10,0,20,18,20,68]
["Јована Динић","не","Гимназија Крушевац","Крушевац","Иван Зорнић",20,11,10,6,20,67]
["Душан Белча","не","Осма београдска гимназија","Београд","Татјана Јоцић",20,5,16,20,6,67]
["Лука Марковић","НЕ","Гимназија „Ј.Ј. Змај“","Нови Сад","Златко Штрбац",20,2.5,16,7,20,65.5]
["Милица Јашовић","не","Гимназија Параћин","Параћин","Предраг Милошевић",20,20,3,20,2,65]
["Немања Плашић","НЕ","Гимназија","Краљево","Предраг Савић",20,5,15,20,5,65]
["Бакир Аломеровић","НЕ","Пријепољска гимназија","Пријепоље","Неџад Хоџић",20,11,20,6,8,65]
["Марија Поповић ","не","Ужичка гимназија","Ужице","Снежана Јевђовић",20,11,6,17,11,65]
["Коста  Бесермењи","НЕ","Гимназија „Ј.Ј. Змај“","Нови Сад","Ненад Павловић",20,0,4,20,20,{"$f":"SUM(F71:J71)","v":64}]
["Јаковљевић Иван","не","Гимназија","Лозница","Ристановић Мирослав",19,5,0,20,20,64]
["Андрија Маринковић","не","Електротехничка школа ''Миладин Поповић''","Приштина-Сушица","Јовица Мишковић",10,42,10,0,0,62]
["Дуња Ђорђевић","не","Гимназија Пирот","Пирот","Нина Јовановић",20,2,10,9,20,61]
["Анастасија Чокорило","НЕ","Гимназија „Ј.Ј. Змај“","Нови Сад","Невена Радошевић",20,7.5,5,8,20,60.5]
["Хамза Колашинац  ","НЕ","Гимназија","Нови Пазар","Рифат Бихорац",20,10,10,10,10,60]
["Иван Шобић","не","XIV београдска гимназија","Београд","Никола Петровић",20,6,0,13,20,59]
["Бојовић Анастасија","не","Ужичка гимназија","ужице","Снежана Јевђовић",20,0,10,9,20,59]
["Исидора Стојадиновић","не","3. гимназија","Београд","Тања Радишић",20,5,1,17,15,58]
["Јован Краснић","НЕ","Гимназија Сава Шумановић","Шид","Бранимир Ћућа",0,0,18,20,20,58]
["Теодора Петровић","не","Тринаеста београдска гимназија","Београд","Љиљана Марковоћ",20,5,3,12,17,57]
["Марко Крстић","НЕ","Митровачка гимназија","Ср. Митровица","Јанко Јовановић",20,6,10,14,6,56]
["Предраг Живковић","не","Гимназија Пирот","Пирот","Нина Јовановић",20,0,10,20,6,56]
["Јана Радивојевић","не","Ужичка гимназија","Ужице","Снежана Јевђовић",6,0,10,20,20,56]
["Милош Милошевић","не","ЕТШ\"Никола Тесла\"","Београд","Данијела Лазић",6,0,20,15,15,56]
["Растко Мишулић","НЕ","Гимназија „Ј.Ј. Змај“","Нови Сад","Ненад Павловић",6,2.5,16,20,11,55.5]
["Огњен Остојић","не","ЕТШ\"Никола Тесла\"","Београд","Данијела Лазић",20,3,0,11,20,54]
["Дaлибoр Ђoрђeвић","не","Алексиначка гимназија","Алексинац","Брaтислaв Симић",{"v":20,"d":"20.0"},{"v":0,"d":"0.0"},{"v":15,"d":"15.0"},{"v":4,"d":"4.0"},{"v":15,"d":"15.0"},54]
["Милица Цветковић","не","Гимназија Параћин","Параћин","Предраг Милошевић",6,14,10,20,4,54]
["Анђела Васковић","не","Гимназија Параћин","Параћин","Предраг Милошевић",15,14,3,6,16,54]
["Михајло Петровић","НЕ","Гимназија","Краљево","Предраг Савић",8,6,0,20,20,54]
["Немања Трајковић","не","Пета београдска гимназија","Београд","Татјана Миљаковић",6,3,10,15,20,54]
["Катарина Ђорђевић","не","Прва београдска гимназија","Београд","Светлана Дамјановић",20,0,4,9,20,53]
["Вања Николић","не","Гимназија Крушевац","Крушевац","Иван Зорнић",15,2,10,6,20,53]
["Љубомир Павић","не","Прва крагујевачка гимназија","Крагујевац","Сузана Арнаут",20,0,10,5,18,53]
["Душан Вујошевић","не","IX гимназија “Михаило Петровић – Алас”","Београд","Саша Цупаћ",20,6,0,11,15,52]
["Милош Бранковић","НЕ","Гимназија „Ј.Ј. Змај“","Нови Сад","Златко Штрбац",20,2.5,16,3,9,50.5]
["Александар Спремо","не","Рачунарска гимназија","Беиград","Наташа Чалуковић",20,4,3,13,10,50]
["Лука Брковић","не","Гимназија \"Борислав Петров Браца\"","Вршац","Сандра Војичић",17,3,10,18,2,50]
["Михајло Бенцун","не","Медицинска школа \" Др Изабел Емсли Хатон","Врање","Добри Станковић",20,5,10,5,10,50]
["Милош Петрашиновић","не","Гимназија ''Вук Караџић'' ","Трстеник","Милош Међедовић",20,10,2,7,11,50]
["Нина Пејић","НЕ","Гимназија „Ј.Ј. Змај“","Нови Сад","Златко Штрбац",6,11,16,7,9,49]
["Стефан Јовановић","НЕ","Митровачка гимназија","Ср. Митровица","Јанко Јовановић",20,1,2,18,8,49]
["Алекса Пауновић","не","Гимназија Параћин","Параћин","Предраг Милошевић",0,5,8,18,18,49]
["Љубица Смиљић","не","IX гимназија “Михаило Петровић – Алас”","Београд","Саша Цупаћ",20,0,2,12,14,48]
["Ђорђе Мићић","не","IX гимназија “Михаило Петровић – Алас”","Београд","Саша Цупаћ",20,0,12,9,7,48]
["Михаило Трајковић","не","Рачунарска гимназија","Београд","Наташа Чалуковић",20,0,8,4,15,47]
["Миланка Ловић","не","Прва београдска гимназија","Београд","Светлана Дамјановић",0,5,9,20,13,47]
["Aлекса Куљанин","не","Ужичка гимназија","Ужице","Снежана Јевђовић",20,2,2,3,20,47]
["Богдан Радојчић","НЕ","Ваљевска гимназија","Ваљево","Марија Сиришки",20,2,2,2,20,46]
["Јована В. Стојановић","не","Гимназија ''Бора Станковић''","Ниш","Лазар Раденковић",{"v":6,"d":"6.0"},{"v":0,"d":"0.0"},{"v":20,"d":"20.0"},{"v":5,"d":"5.0"},{"v":15,"d":"15.0"},46]
["Даница Чутура","не","Гимназија \"Светозар Марковић\"","Јагодина","Славица Тодоровић",20,0,20,5,1,46]
["Петар Ковачевић","не","Тринаеста београдска гимназија","Београд","Љиљана Марковоћ",0,18,1,20,6,45]
["Теодора Станишић","НЕ","Гимназија „Ј.Ј. Змај“","Нови Сад","Невена Радошевић",0,11,6,8,20,45]
["Младен Малобабић","НЕ","Митровачка гимназија","Ср. Митровица","Јанко Јовановић",20,0,4,1,20,45]
["Михајло Мадић","не","Гимназија Пирот","Пирот","Нина Јовановић",20,0,0,20,5,45]
["Павле Бубања","НЕ","Гимназија","Врњачка Бања","Марија Недељковић-Живковић",5,5,15,10,10,45]
["Вера Павловић","не","Прва београдска гимназија","Београд","Светлана Дамјановић",20,0,2,15,7,44]
["Михајло Кљајевић ","не","Гимназија \"Урош Предић\"","Панчево","Миленко Дабић ",20,8,0,10,6,44]
["Вељко Гаврић","не","Гимназија Крушевац","Крушевац","Иван Зорнић",20,0,10,6,7,43]
["Јована Воштић","не","Гимназија","Чачак","Бојана Лазаревић",0,0,10,20,13,43]
["Ненад Тепавац","не","Тахничка школа","Кикинда","Мирко Вукобрат",20,0,0,5,18,43]
["Владимир Крстић ","не","Гимназија \"Урош Предић\"","Панчево","Јасмина Ћосић ",20,5,10,3,4,42]
["Сергеј Вукасовић ","не","Гимназија \"Урош Предић\"","Панчево","Миленко Дабић ",20,1,10,5,6,42]
["Душан Богосављев","не","Електротехничка школа \"Никола Тесла\"","Панчево","Маријана Крстић",17,0,10,4,11,42]
["Лука Ненић","не","Гимназија \"Светозар Марковић\"","Ниш","Драгана Јеленковић",{"v":0,"d":"0.0"},{"v":5,"d":"5.0"},{"v":10,"d":"10.0"},{"v":12,"d":"12.0"},{"v":15,"d":"15.0"},42]
["Миња Миловановић","не","Прва крагујевачка гимназија","Крагујевац","Ана Жлибар",6,5,6,5,20,42]
["Урош Миленковић","не","ЕТШ\"Никола Тесла\"","Београд","Данијела Лазић",20,0,0,9,12,41]
["ДаркоТадић","не","Тринаеста београдска гимназија","Београд","Љиљана Марковоћ",20,3,1,11,6,41]
["Александар Ристић","не","Гимназија \"Светозар Марковић\"","Јагодина","Љиљана Николоћ",20,2,10,5,4,41]
["Лука Ивковић","не","Гимназија ''Бора Станковић''","Ниш","Лазар Раденковић",{"v":0,"d":"0.0"},{"v":0,"d":"0.0"},{"v":0,"d":"0.0"},{"v":20,"d":"20.0"},{"v":20,"d":"20.0"},40]
["Никола Лазић","не","Гимназија Параћин","Параћин","Предраг Милошевић",6,8,10,5,11,40]
["Светлана Поњавић","не","Прва београдска гимназија","Београд","Светлана Дамјановић",20,0,3,6,10,39]
["Александар Раденковић","не","3. гимназија","Београд","Тања Радишић",20,5,0,5,9,39]
["Максим Констадинов","не","Ужичка гимназија","Ужице","Снежана Јевђовић",0,0,0,20,19,{"$f":"SUM(F135:J135)","v":39}]
["Миленко Вујков","НЕ","Гимназија „Ј.Ј. Змај“","Нови Сад","Ненад Павловић",20,2.5,0,7,9,38.5]
["Лука Басрак","не","IX гимназија “Михаило Петровић – Алас”","Београд","Саша Цупаћ",6,20,0,1,11,38]
["Предраг Ђорђевић","не","Гимназија Пирот","Пирот","Нина Јовановић",6,2,20,0,10,38]
["Младен Анђелковић","не","Гимназија Параћин","Параћин","Предраг Милошевић",0,20,2,8,8,38]
["Алекса Мићановић","не","IX гимназија “Михаило Петровић – Алас”","Београд","Саша Цупаћ",6,5,0,11,15,37]
["Бојан Станчев","не","Св. Кирило и Методије","Димитровград","Ратко Манчев",12,0,0,20,5,37]
["Марко Лазаревић","не","Прва београдска гимназија","Београд","Светлана Дамјановић",20,0,0,11,5,36]
["Милица Ђурић","НЕ","Гимназија Сава Шумановић","Шид","Бранимир Ћућа",6,0,8,20,2,36]
["Наталија Павловић","НЕ","Гимназија \"С. Марковић\"","Суботица","Мирко Киселички",3,11,0,2,20,36]
["Микош Бабић","не","Техничка школа","Кикинда","Мирко Вукобрат",6,0,0,20,10,36]
["Емилија Степанчевић","НЕ","Гимназија Сава Шумановић","Шид","Бранимир Ћућа",0,3.5,16,7,9,35.5]
["Лазар Попадић","не","Тринаеста београдска гимназија","Београд","Љиљана Марковоћ",20,0,4,0,11,35]
["Стефан Јовановић","не","Гимназија \"Светозар Марковић\"","Ниш","Драгана Јеленковић",{"v":6,"d":"6.0"},{"v":0,"d":"0.0"},{"v":20,"d":"20.0"},{"v":3,"d":"3.0"},{"v":6,"d":"6.0"},35]
["Сара Прушевић ","НЕ","Гимназија","Нови Пазар","Рифат Бихорац",5,0,5,20,5,35]
["Михаило Пауновић","НЕ","Гимназија Зајечар","Зајечар","Младен Шљивовић",8,0,0,7,20,35]
["Анђела Петров ","не","Гимназија \"Урош Предић\"","Панчево","Миленко Дабић ",12,2,10,3,7,34]
["Никола Станисављевић","не","ЕТШ\"Никола Тесла\"","Београд","Данијела Лазић",0,5,3,13,13,34]
["Алекса Кузмановић","не","Медицинска школа \"Андра Јовановић\"","Шабац","Марија Тешић",20,2,5,2,5,34]
["Невена Милорадовић","не","Гимназија","Чачак","Ирена Симовић",10,0,3,6,15,34]
["Стефан Керкоч","не","ЕТШ\"Никола Тесла\"","Београд","Данијела Лазић",6,0,1,15,11,33]
["Михајло Ђурић","не","Средња школа","Варварин","Велимир Стојадиновић",6,0,20,3,4,33]
["Jаков Мисаиловић","не","Ужишка гимназија","Ужице","Снежана Јевђовић",20,5,2,6,0,33]
["Петар Кујучев","не","IX гимназија “Михаило Петровић – Алас”","Беиград","Саша Цупаћ",0,0,8,15,9,32]
["Ђорђе Павловић","не","Четврта гимназија","Београд","Данијела Пистолић",6,2,0,20,4,32]
["Милорад Игић","НЕ","Гимназија ","К. Митровица","Слободан Михајловић",20,0,5,2,5,32]
["Анђела Радивојевић","не","Гимназија \"Светозар Марковић\"","Ниш","Драгана Јеленковић",{"v":20,"d":"20.0"},{"v":0,"d":"0.0"},{"v":5,"d":"5.0"},{"v":5,"d":"5.0"},{"v":2,"d":"2.0"},32]
["Урош Маринковић","не","Гимназија \"Светозар Марковић\"","Ниш","Драгана Јеленковић",{"v":20,"d":"20.0"},{"v":1,"d":"1.0"},{"v":0,"d":"0.0"},{"v":5,"d":"5.0"},{"v":6,"d":"6.0"},32]
["Вук Рикановић","не","Прва београдска гимназија","Београд","Светлана Дамјановић",6,0,0,10,15,31]
["Никола Шеховац","НЕ","Гимназија „Ј.Ј. Змај“","Нови Сад","Златко Штрбац",0,2.5,20,1,7,30.5]
["Александар Танчић","не","Гимназија \"Бора Станковић\"","Бор","Горан Марковић",6,5,10,4,5,30]
["Вељко Његомир","не","Гимназија \"Борислав Петров Браца\"","Вршац","Сандра Војичић",12,2,0,3,13,30]
["Марко Рабат","НЕ","Ваљевска гимназија","Ваљево","Дејан Ђокић",0,15,0,5,10,30]
["Гавриловић Марко","не","Гимназија","Ивањица","Светислав Ђурић",18,0,0,0,12,30]
["Јован Најдовски","не","Гимназија \" Бора Станковић \"","Врање"," Иванка Станковић",17,0,10,3,0,30]
["Андрија Пешић","не","Гимназија Пирот","Пирот","Нина Јовановић",0,0,20,3,7,30]
["Маја Пецић","не","Гимназија Крушевац","Крушевац","Миланка Илић",20,0,5,3,2,30]
["Илија Радуловић","не","Гимназија","Чачак","Драган Андрић",20,0,3,0,6,29]
["Богдана Ковачевић","не","Гимназија Параћин","Параћин","Предраг Милошевић",20,0,3,2,4,29]
["Душан Врањеш","не","IX гимназија “Михаило Петровић – Алас”","Београд","Саша Цупаћ",0,0,0,15,13,28]
["Светлана Сарапа","не","Белоцркванска гимназија и економска школа","Бела Црква","Стајковић Владимир",20,2,2,2,2,28]
["Бранислав Ноин","не","Гимназија \"Душан Васињев\"","Кикинда","Ина Лепар",0,20,0,3,4,27]
["Ана Мишковић","НЕ","Гимназија \"Вељко Петровић\"","Сомбор","Љиљана Мијатовић",11,0,5,4,7,27]
["Александар Живановић","НЕ","Гимназија \"Свети Сава\"","Пожега","Гордана Варница",20,0,0,3,4,27]
["Стеван Секулић","НЕ","Средња школа \"Никола Тесла\"","Лепосавић","Николић Маја",20,0,0,5.5,1,26.5]
["Немања Вићановић","не","ЕТШ\"Никола Тесла\"","Београд","Данијела Лазић",6,0,0,0,20,26]
["Сара Цупара","НЕ","Гимназија „Ј.Ј. Змај“","Нови Сад","Невена Радошевић",6,1,0,3,16,26]
["Анастасиа Огризовић","НЕ","Гимназија Сава Шумановић","Шид","Бранимир Ћућа",0,0,16,8,2,26]
["Милош Тошков","Не","Зрењанинска гимназија","Зрењанин","Вера Дамјанов",20,2,1,0,3,26]
["Душан Папић","НЕ","Ужичка гимназија","Ужице","Снежана Јевђовић",0,0,0,6,20,26]
["Богдан Јаношевић","НЕ","Гимназија Сава Шумановић","Шид","Бранимир Ћућа",0,0,16,7,2,25]
["Марко Марковић","НЕ","Техничка школа","Ваљево","Драгица Ђукнић",5,5,5,5,5,25]
["Урош Мадић","не","Гимназија Пирот","Пирот","Нина Јовановић",0,0,0,20,5,25]
["Михајло Аранђеловић","не","Гимназија Крушевац","Крушевац","Иван Зорнић",0,0,20,3,2,25]
["Лука Филиповић","НЕ","Гимназија","Краљево","Предраг Савић",5,0,10,5,5,25]
["Милутин Павличић","НЕ","Гимназија \"Петро Кузмјак\"","Руски Крстур","К. Сабадош и М. Мартињук",5,0,0,11,9,25]
["Павле Вилотијевић","не","Гимназија Младеновац","Младеновац","Жарко Његовановић",0,0,0,20,4,24]
["Марко Павковић","НЕ","Гимназија „Ј.Ј. Змај“","Нови Сад","Златко Штрбац",0,0,18,0,6,24]
["Жива Рогановић","не","Гимназија \"Борислав Петров Браца\"","Вршац","Сандра Војичић",14,0,10,0,0,24]
["Илија Ђорђевић Арсић","не","Гимназија ''Бора Станковић''","Ниш","Лазар Раденковић",{"v":14,"d":"14.0"},{"v":0,"d":"0.0"},{"v":0,"d":"0.0"},{"v":5,"d":"5.0"},{"v":5,"d":"5.0"},24]
["Сава Ивковић","не","ЕТШ\"Никола Тесла\"","Београд","Данијела Лазић",0,0,2,6,15,23]
["Јелена Ђорђевић","не","Пожаревачка гимназија","Пожаревац","Зорица Алексић",15,0,0,8,0,23]
["Лазар Фибишан","не","Гимназија \"Борислав Петров Браца\"","Вршац","Сандра Војичић",0,3,10,8,2,23]
["Јана Марковић","не","Прва крагујевачка гимназија","Крагујевац","Ана Жлибар",6,10,0,5,2,23]
["Сава Николић","не","Прва крагујевачка гимназија","Крагујевац","Ана Жлибар",0,5,0,10,8,{"$f":"SUM(F199:J199)","v":23}]
["Доротеја Петровић","не","3. гимназија","Београд","Тања Радишић",6,5,0,6,5,22]
["Душан Ристић","не","Гимназија \" Бора Станковић \"","Врање"," Иванка Станковић",12,5,0,3,2,22]
["Сара Томић","не","Гимназија Крушевац","Крушевац","Миланка Илић",0,0,20,2,0,22]
["Мила Ранитовић","НЕ","Гимназија \"Вељко Петровић\"","Сомбор","Љиљана Мијатовић",0,7,6,3,6,22]
["Матија Глишић","не","Прва београдска гимназија","Београд","Светлана Дамјановић",20,0,1,0,0,21]
["Митар Арсовић","не","Прва крагујевачка гимназија","Крагујевац","Сузана Арнаут",0,5,5,5,6,21]
["Саша Калиновић","не","Средња школа \"Свети Сава\"","Кладово","Иван Стојановић",6,0,10,4,0,20]
["Марко Пејановић","НЕ","Гимназија „Ј.Ј. Змај“","Нови Сад","Златко Штрбац",0,0,0,0,20,20]
["Даниел Вулку","не","Гимназија \"Борислав Петров Браца\"","Вршац","Сандра Војичић",6,0,10,2,2,20]
["Саво Ружичић","не","Гимназија","Чачак","Драган Андрић",0,0,20,0,0,20]
["Коста Илић","не","Гимназија \"Милош Савковић\"","Аранђеловац","Александар Момчиловић",0,0,20,0,0,20]
["Јанко Досев","не","Гимназија у Обреновцу","Обреновац","Емилија Старчевић",6,0,0,9,4,19]
["Александар Стакић","НЕ","Гимназија \"Исидора Секулић\"","Нови Сад","Јован Проданов",0,0,0,10,9,19]
["Огњен Станковић","не","Гимназија \"Урош Предић\"","Панчево","Јасмина Ћосић ",0,0,10,5,4,19]
["Лука Момчиловић","не","Техничка школа \" Никола Тесла \" ","Сурдулица","Братислав Радовановић",6,0,10,3,0,19]
["Немања Миловановић","не","Прва крагујевачка гимназија","Крагујевац","Ана Жлибар",5,0,0,5,9,19]
["Анђела Милутиновић","НЕ","Књажевачка гимназија","Књажевац","Милијан Срејић",0,4,0,5,10,19]
["Алекса Живановић","не","IX гимназија “Михаило Петровић – Алас”","Београд","Саша Цупаћ",6,0,9,0,3,18]
["Васић Јован","не","Средња школа \"Вук Караџић\"","Љубовија","Жељка Марковић",0,0,9,5,4,18]
["Петковић Ања","не","Гимназија","Лозница","Ристановић Мирослав",6,1,0,2,9,18]
["Марко Лозаноски","не","Електротехничка школа \"Никола Тесла\"","Панчево","Јелена Марковић",0,0,10,5,2,17]
["Димитрије Петровић","не","Гимназија ''Бора Станковић''","Ниш","Лазар Раденковић",{"v":0,"d":"0.0"},{"v":3,"d":"3.0"},{"v":0,"d":"0.0"},{"v":5,"d":"5.0"},{"v":9,"d":"9.0"},17]
["Бранкица Пејачки","Не","Зрењанинска гимназија","Зрењанин","Вера Дамјанов",9,0,0,5,3,17]
["Сара Мармила","НЕ","Гимназија \"Петро Кузмјак\"","Руски Крстур","К. Сабадош и М. Мартињук",1,9,1,2,4,17]
["Душан Јанковић","не","Тринаеста београдска гимназија","Београд","Љиљана Марковоћ",6,0,0,6,3,15]
["Лидија Делетић","не","Гимназија Крушевац","Крушевац","Иван Зорнић",7,0,0,0,8,15]
["Сара Велимировић","НЕ","Гимназија","Краљево","Предраг Савић",5,0,0,5,5,15]
["Жељка Секуловић","не","IX гимназија “Михаило Петровић – Алас”","Београд","Саша Цупаћ",6,0,0,3,5,14]
["Јован Милановић","не","Електротехничка школа \"Никола Тесла\"","Панчево","Маријана Крстић",0,0,10,2,2,14]
["Алексић Вељко","не","Техничка школа","Лозница","Гордана Вукосављевић",6,1,0,2,5,14]
["Глигорић Глигорије","не","Гимназија","Лозница","Ристановић Мирослав",0,2,0,2,10,14]
["Андреј Петровић","не","Гимназија Крушевац","Крушевац","Иван Зорнић",7,0,0,3,4,14]
["Давид Марковић","не","Прва крагујевачка гимназија","Крагујевац","Сузана Арнаут",0,0,0,5,9,14]
["Ђорђе Поповић","не","Гимназија \"Милош Савковић\"","Аранђеловац","Александар Момчиловић",0,0,0,5,9,14]
["Фарис Мујезиновић","НЕ","Пријепољска гимназија","Пријепоље","Неџад Хоџић",0,0,0,3,11,14]
["Лука Славић","не","Гимназија Патријарх Павле","Београд","Татјана Илинчић",0,0,0,8,5,13]
["Ана Зорић","не","3. гимназија","Београд","Тања Радишић",6,0,0,0,7,13]
["Ранковић Исидора","не","Гимназија","Лозница","Ристановић Мирослав",6,0,0,2,5,13]
["Андреја Илић","не","Гимназија \"Светозар Марковић\"","Ниш","Вера Прокић",{"v":2,"d":"2.0"},{"v":0,"d":"0.0"},{"v":0,"d":"0.0"},{"v":5,"d":"5.0"},{"v":6,"d":"6.0"},13]
["Драган Рађевић","НЕ","Гимназија Сава Шумановић","Шид","Бранимир Ћућа",0,0,4,4,4,12]
["Лука Дуњић","не","Гимназија","Чачак","Ирена Симовић",0,0,0,6,6,12]
["Анастасија Букумира","не","Гимназија \"Светозар Марковић\"","Ниш","Драгана Јеленковић",{"v":0,"d":"0.0"},{"v":0,"d":"0.0"},{"v":0,"d":"0.0"},{"v":5,"d":"5.0"},{"v":7,"d":"7.0"},12]
["Алекса Милосављевић","не","IX гимназија “Михаило Петровић – Алас”","Београд","Саша Цупаћ",0,0,0,6,5,11]
["Урош Милашиновић","не","ЕТШ\"Никола Тесла\"","Београд","Јасмина Радусин",6,0,0,3,2,11]
["Милош Лазић","не","Пета београдска гимназија","Београд","Татјана Миљаковић",6,0,0,0,5,11]
["Никола Пештанац","не","Машинска школа \"Панчево\"","Панчево","Снежана Савичић",0,0,2,5,4,11]
["Немања Ацковић","не","Гимназија Крушевац","Крушевац","Миланка Илић",6,0,2,3,0,11]
["Miодраг Гицић","не","Средња школа \"Свети Сава\"","Кладово","Иван Стојановић",0,0,10,0,0,10]
["Бојана Попов","НЕ","СШ \"22 октобар\"","Жабаљ","Васа Вучуревић",0,0,4,0,6,10]
["Тамара Ранисовић","НЕ","СШ \"22 октобар\"","Жабаљ","Васа Вучуревић",0,0,0,4,6,10]
["Милица Пољичак","не","Гимназија \"Светозар Марковић\"","Ниш","Драгана Јеленковић",{"v":0,"d":"0.0"},{"v":1,"d":"1.0"},{"v":0,"d":"0.0"},{"v":0,"d":"0.0"},{"v":9,"d":"9.0"},10]
["Кристина Миловановић","не","Техничка школа \" Никола Тесла \" ","Сурдулица","Братислав Радовановић",0,0,10,0,0,10]
["Дејан Стаменов","не","Св. Кирило и Методије","Димитровград","Ратко Манчев",2,2,2,2,2,10]
["Матија Пецић","не","Гимназија ''Вук Караџић'' ","Трстеник","Милош Међедовић",0,0,10,0,0,10]
["Тијана Вукићевић","НЕ","Гимназија","Краљево","Предраг Савић",0,0,0,5,5,10]
["Драгана Стојић","НЕ","Гимназија \"Свети Сава\"","Пожега","Гордана Варница",0,0,0,6,4,10]
["Обрадовић Милош","не","Техничка школа","Лозница","Гордана Вукосављевић",0,2.5,0,7,0,9.5]
["Марко Спремић","не","VI београдска гимназија","Београд","Тијана Маринковић",0,0,0,5,4,9]
["Пајић Анита","не","Гимназија","Лозница","Ристановић Мирослав",0,2,0,2,5,9]
["Петар Јурић","не","Гимназија ''Бора Станковић''","Ниш","Лазар Раденковић",{"v":0,"d":"0.0"},{"v":0,"d":"0.0"},{"v":0,"d":"0.0"},{"v":3,"d":"3.0"},{"v":6,"d":"6.0"},9]
["Милош Јовановић","не","Гимназија \"Светозар Марковић\"","Јагодина","Љиљана Николоћ",0,5,0,2,2,9]
["Александар Митревски","не","Гимназија Патријарх Павле","Београд","Биљана Станковић",0,0,0,6,2,8]
["Игор Живковић","не","ЕТШ\"Никола Тесла\"","Београд","Данијела Лазић",6,0,2,0,0,8]
["Алексеј Жиловић","НЕ","Гимназија „Ј.Ј. Змај“","Нови Сад","Златко Штрбац",0,0,0,8,0,{"$f":"SUM(F263:J263)","v":8}]
["Мина Шеремет","НЕ","Гимназија Сава Шумановић","Шид","Бранимир Ћућа",0,0,0,4,4,8]
["Обрадовић Андрија","НЕ","Средња школа \"Глигорије Божовић\"","З. Поток","Славица Терзић",1,0,0,3,4,8]
["Стефан Божанић","не","Шабачка гимназија","Шабац","Снежана Вуковић",6,0,0,2,0,8]
["Марковић Нађа","не","Средња школа","Крупањ","Раде Грујић",0,0,3,5,0,8]
["Лука Миловановић","НЕ","Паланачка гимназија","Смедеревска Паланка","Горан Ивковић",0,0,0,3,5,8]
["Дарко Петковић","не","Средња школа","Варварин","Велимир Стојадиновић",0,0,5,3,0,8]
["Анђела Здравић","не","Средња школа","Брус","Жаклина Ђорђевић",0,0,0,3,5,8]
["Вања Милутиновић","не","Гимназија ''Вук Караџић'' ","Трстеник","Милош Међедовић",0,0,5,2,1,8]
["Немања Дутина","НЕ","Гимназија и економска школа \"Д. Обрадовић\"","Бачка Топола","Петер Фараго",0,0,0,0,8,8]
["Милан Марјановић","НЕ","Гимназија Сава Шумановић","Шид","Бранимир Ћућа",0,0,4,1,2,7]
["Михајло Рибаров","не","Хемијско медицинска школа, Вршац","Вршац","Наташа Трифуновић",0,0,0,5,2,7]
["Анђелија Ковачевић","не","Гимназија Параћин","Параћин","Предраг Милошевић",0,0,3,2,2,7]
["Марија Марић","не","Средња школа","Брус","Жаклина Ђорђевић",1,0,0,2,4,7]
["Стефан Паројчић","не","Гимназија Патријарх Павле","Београд","Биљана Станковић",0,0,0,6,0,6]
["Маја Саковић","не","Прва београдска гимназија","Београд","Чедо Шкорић",0,0,0,3,3,6]
["Владимир Зељковић","не","Пета београдска гимназија","Београд","Татјана Миљаковић",0,0,1,0,5,6]
["Урош Јовановић","не","ЕТШ\"Никола Тесла\"","Београд","Данијела Лазић",0,0,0,6,0,6]
["Стојановић Душан","не","Техничка школа","Лозница","Гордана Вукосављевић",0,0,0,5,1,6]
["Ћосић Лука","не","Гимназија","Лозница","Ристановић Мирослав",0,0,0,2,4,6]
["Јован Милетић","не","Гимназија Таковски устанак","Г.Милановац","Ј.Станковић",0,0,0,0,6,6]
["Андреј Топалов","не","Гимназија Пирот","Пирот","Нина Јовановић",0,0,0,2,4,6]
["Андреј Ивановић","не","Гимназија \"Светозар Марковић\"","Јагодина","Љиљана Николоћ",0,0,0,0,6,6]
["Александра Младеновић","не","Гимназија \"Бора Станковић\"","Бор","Горан Марковић",0,0,0,0,5,5]
["Никола Маринковић","не","Гимназија \"Светозар Марковић\"","Ниш","Вера Прокић",{"v":0,"d":"0.0"},{"v":0,"d":"0.0"},{"v":0,"d":"0.0"},{"v":5,"d":"5.0"},{"v":0,"d":"0.0"},5]
["Никола Видаковић","не","Гимназија у Обреновцу","Обреновац","Емилија Старчевић",0,0,2,0,2,4]
["Урош Аришић","НЕ","Гимназија Сава Шумановић","Шид","Бранимир Ћућа",0,0,4,0,0,4]
["Данило Вучковић","НЕ","Средња школа \"Глигорије Божовић\"","З. Поток","Славица Терзић",0,0,2,2,0,4]
["Алексић Војин","не","Гимназија","Лозница","Ристановић Мирослав",0,1,3,0,0,4]
["Дивљаковић Немања","не","Средња школа","Крупањ","Раде Грујић",0,1,3,0,0,4]
["Ана Николић","не","Гимназија Крушевац","Крушевац","Миланка Илић",0,0,0,2,2,4]
["Никола Узелац","НЕ","Гимназија и економска школа \"Д. Обрадовић\"","Бачка Топола","Петер Фараго",0,0,0,0,4,4]
["Милан Соколовић","НЕ","Књажевачка гимназија","Књажевац","Милијан Срејић",0,0,0,4,0,4]
["Марија Катанић","Не","Гимназија\"Јосиф Панчић\"","Бајина Башта","Видан Павићевић ",0,0,0,3,0,3]
["Вук Амиџић","не","IX гимназија “Михаило Петровић – Алас”","Београд","Саша Цупаћ",0,0,0,2,0,2]
["Алекса Савић","не","ЕТШ\"Никола Тесла\"","Београд","Данијела Лазић",0,0,1,0,1,2]
["Јовановић Анастасија","не","Средња школа \"Вук Караџић\"","Љубовија","Жељка Марковић",0,0,0,2,0,2]
["Перић Анастасија","не","Средња школа \"Вук Караџић\"","Љубовија","Жељка Марковић",0,0,2,0,0,2]
["Пешић Татјана","не","Гимназија","Лозница","Ристановић Мирослав",0,0,0,2,0,2]
["Виолета Скакавац","НЕ","Гимназија Сава Шумановић","Шид","Бранимир Ћућа",0,0,0,1,0,1]
["Петар Милановић","не","Гимназија \"Бора Станковић\"","Бор","Горан Марковић",0,0,0,0,0,0]
["Огњен Блажић","НЕ","Ваљевска гимназија","Ваљево","Дејан Ђокић",0,0,0,0,0,0]
["Вукан Милентијевић","НЕ","Медицинска школа","К. Митровица","Данијела Спасић",0,0,0,0,0,0]
["Лазаревић Никола","НЕ","Техничка школа \"М.П. Алас\"","К. Митровица","Александра Гвоздић",0,0,0,0,0,0]
["Тамара Милић","НЕ","Средња школа \"Глигорије Божовић\"","З. Поток","Славица Терзић",0,0,0,0,0,0]
["Ивана Бозало","НЕ","Гимназија Сава Шумановић","Шид","Бранимир Ћућа",0,0,0,0,0,0]
["Јелена Николић","не","Техничка школа \" Никола Тесла \" ","Сурдулица","Братислав Радовановић",0,0,0,0,0,0]
["Марија Илић","не","Гимназија \" Бора Станковић \"","Врање"," Иванка Станковић",0,0,0,0,0,0]
["Никола Тошић","НЕ","Паланачка гимназија","Смедеревска Паланка","Горан Ивковић",0,0,0,0,0,0]
["Атила Пинтер","НЕ","Гимназија \"С. Марковић\"","Суботица","Габор Биач",0,0,0,0,0,0]
["Емеше Пешти","НЕ","Гимназија \"С. Марковић\"","Суботица","Габор Биач",0,0,0,0,0,0]
["Александра Димитријевић","Не","Гимназија\"Јосиф Панчић\"","Бајина Башта","Видан Павићевић ",0,0,0,0,0,0]
["Маријана Вучићевић","Не","Гимназија\"Јосиф Панчић\"","Бајина Башта","Видан Павићевић ",0,0,0,0,0,0]

{"sheet":"1. razred bozoni","index":1,"n_rows":125,"n_cols":12,"rows_kept":125,"merged":[[0,1,0,13],[3,1,3,3],[4,7,4,12]]}
[null,"ПРВИ  РАЗРЕД БОЗОНИ"]
[]
[]
[]
[{"$nulls":7},"Освојено бодова (ненормираних)"]
["Име и презиме","посебно\nодељење\n(ДА / НЕ)","Назив школе","Место","Име и презиме\nнаставника","Зад.1","Зад.2","Зад.3","Зад.4","Зад.5","Ук.","Награда"]
["Богдан Рајков","да","Математичка гимназија","Београд","Иван Станић",20,20,20,20,20,{"$f":"SUM(F7:J7)","v":100}]
["Марко Шишовић","да","Математичка гимназија","Београд","Иван Станић",20,20,20,20,20,100]
["Ирина Ђанковић","да","Математичка гимназија","Београд","Иван Станић",20,20,20,20,20,100]
["Михаило Милошевић","да","Математичка гимназија","Београд","Иван Станић",20,20,20,20,20,100]
["Лука Царић","да","Математичка гимназија","Београд","Бранислав Цветковић",20,20,20,20,20,100]
["Павле Ћулафић","да","Математичка гимназија","Београд","Иван Станић",20,20,20,20,20,100]
["Лазар Станаревић","да","Математичка гимназија","Београд","Иван Станић",20,20,20,20,20,100]
["Николина Илић","да","Математичка гимназија","Београд","Бранислав Цветковић",20,20,20,20,20,100]
["Милица Дамњановић","да","Математичка гимназија","Београд","Иван Станић",20,20,20,20,20,100]
["Александар Стојковић","да","Гимназија \"Светозар Марковић\"","Ниш","Иван Манчев",20,20,20,20,20,100]
["Корнел Хуђик","да","Гимназија \"Бољаи\"","Сента","Арпад Бордаш",20,20,20,20,20,100]
["Вукашин Михајловић","да","Математичка гимназија","Београд","Иван Станић",20,20,20,20,19,99]
["Душан Мишковић","да","Математичка гимназија","Београд","Иван Станић",18,20,20,20,20,98]
["Страхиња Николић","да","Математичка гимназија","Београд","Бранислав Цветковић",20,20,18,20,20,98]
["Зарија Тртовић","да","Математичка гимназија","Београд","Александра Димић",20,20,17,20,20,97]
["Урош Малеш","да","Математичка гимназија","Београд","Иван Станић",20,20,17,20,20,97]
["Лука Токмачић","да","Математичка гимназија","Београд","Катарина Матић",17,20,20,20,20,97]
["Ленка Стаматовић","да","Математичка гимназија","Београд","Катарина Матић",20,20,17,20,20,97]
["Марко Грујчић","да","Математичка гимназија","Београд","Иван Станић",20,18,20,20,18,96]
["Јован Торомановић","да","Математичка гимназија","Београд","Иван Станић",16,20,20,20,20,96]
["Огњен Стефановић","да","Математичка гимназија","Београд","Бранислав Цветковић",20,18,17,20,20,95]
["Даниил Грбић","да","Математичка гимназија","Београд","Иван Станић",20,18,17,20,20,95]
["Матија Божовић","да","Математичка гимназија","Београд","Александра Димић",20,18,17,20,20,95]
["Немања Вујадиновић","ДА","Гимназија „Ј.Ј. Змај“","Нови Сад","Мирослав Цветинов",20,20,15,20,20,95]
["Лазар Станковић","ДА","Ваљевска гимназија","Ваљево","Предраг Стефановић",20,20,15,20,20,95]
["Жарко Ивковић","да","Гимназија \"Светозар Марковић\"","Ниш","Иван Манчев",20,20,15,20,20,95]
["Михаило Тимотић","ДА","Ваљевска гимназија","Ваљево","Предраг Стефановић",20,19,20,14,20,93]
["Јелена Иванчић","да","Математичка гимназија","Београд","Иван Станић",20,20,20,20,12,92]
["Ања Станић","да","Математичка гимназија","Београд","Александра Димић",17,20,20,15,20,92]
["Војин Ивковић","да","Гимназија \"Светозар Марковић\"","Ниш","Иван Манчев",14.8,17,20,20,20,91.8]
["Димитрије Глукчевић","да","Гимназија \"Светозар Марковић\"","Ниш","Славољуб Митић",20,20,10.6,20,20,90.6]
["Стефан Миленовић","да","Гимназија \"Светозар Марковић\"","Ниш","Иван Манчев",20,20,10.6,20,20,90.6]
["Стефан Станковић","да","Гимназија \"Светозар Марковић\"","Ниш","Иван Манчев",20,20,10.6,20,20,{"$f":"SUM(F39:J39)","v":90.6}]
["Ђорђе Стефановић","да","Математичка гимназија","Београд","Иван Станић",20,10,20,20,20,90]
["Тадија Шебез","ДА","Гимназија „Ј.Ј. Змај“","Нови Сад","Мирослав Цветинов",20,20,10,20,20,90]
["Михаило Павловић","да","Прва крагујевачка гимназија","Крагујевац","Катарина Ђорђевић",20,20,15,15,20,90]
["Реља Радека","ДА","Гимназија „Ј.Ј. Змај“","Нови Сад","Мирослав Цветинов",20,8.5,20,20,20,88.5]
["Владан Козић","да","Математичка гимназија","Београд","Александра Димић",17,14,17,20,20,88]
["Игор Павловић","да","Математичка гимназија","Београд","Иван Станић",15,20,20,20,12,87]
["Јелисавета Алексић","да","Математичка гимназија","Београд","Александра Димић",20,20,5,20,20,85]
["Наташа Столић","да","Математичка гимназија","Београд","Бранислав Цветковић",20,20,5,20,20,85]
["Марија Недељковић","ДА","Гимназија","Краљево","Предраг Савић",15,15,15,20,20,85]
["Вељко Мићуновић","да","Гимназија \"Светозар Марковић\"","Ниш","Иван Манчев",20,14,10.6,20,20,84.6]
["Александра Шарбох Бабић ","да","Математичка гимназија","Београд","Александра Димић",20,20,5,19,20,84]
["Алекса Миљковић","да","Математичка гимназија","Београд","Бранислав Цветковић",20,6,20,20,18,84]
["Александра Марељ","ДА","Гимназија „Ј.Ј. Змај“","Нови Сад","Ненад Павловић",20,9,15,20,20,84]
["Војин Лукић","да","Математичка гимназија","Београд","Александра Димић",20,18,5,20,20,83]
["Стефан Малијевић","ДА","Гимназија „Ј.Ј. Змај“","Нови Сад","Стеван Јанков",20,11,15,17,20,83]
["Алиса Јошовић","да","Прва крагујевачка гимназија","Крагујевац","Катарина Ђорђевић",15,20,15,20,13,83]
["Антоније Суботић","да","Математичка гимназија","Београд","Александра Димић",8,20,15,20,20,83]
["Павле Тепавчевић","ДА","Гимназија „Ј.Ј. Змај“","Нови Сад","Мирослав Цветинов",20,9,13,20,20,82]
["Марко Миливојевић","да","Прва крагујевачка гимназија","Крагујевац","Катарина Ђорђевић",20,12,15,20,15,82]
["Душан Суђић","ДА","Гимназија „Ј.Ј. Змај“","Нови Сад","Мирослав Цветинов",12,11,18,20,20,81]
["Јелисавета Летић","ДА","Гимназија „Ј.Ј. Змај“","Нови Сад","Мирослав Цветинов",20,14,15,15,17,81]
["Петар Миловановић","да","Земунска гимназија","Земун","Бојан Николић",3,20,17,20,20,80]
["Марко Лазаревски","да","Математичка гимназија","Београд","Бранислав Цветковић",17,20,5,18,20,80]
["Маша Максимовић","да","Математичка гимназија","Београд","Иван Станић",17,6,17,20,20,80]
["Грујичић Немања","ДА","Ваљевска гимназија","Ваљево","Предраг Стефановић",20,20,0,20,20,80]
["Саво Цвијетић","ДА","Ваљевска гимназија","Ваљево","Предраг Стефановић",20,3,20,18,19,80]
["Митар Милинковић","ДА","Гимназија „Ј.Ј. Змај“","Нови Сад","Мирослав Цветинов",18.4,6,15,20,20,79.4]
["Ненадовић Никола","ДА","Ваљевска гимназија","Ваљево","Предраг Стефановић",13,11,15,20,20,79]
["Давид Николић","ДА","Гимназија","Краљево","Предраг Савић",12,11,20,20,16,79]
["Хана Андрић","да","Математичка гимназија","Београд","Александра Димић",17,3,17,20,20,77]
["Алекса Новаковић","ДА","Гимназија","Краљево","Предраг Савић",18,10,15,13,20,76]
["Урош Николовски","ДА","Гимназија „Ј.Ј. Змај“","Нови Сад","Ненад Павловић",20,9,20,8,18,{"$f":"SUM(F71:J71)","v":75}]
["Урош Стефановић","да","Математичка гимназија","Београд","Катарина Матић",17,15,5,18,18,73]
["Станко Бугарчић","да","Математичка гимназија","Београд","Катарина Матић",20,9,5,20,18,72]
["Филип Ивановић","да","Математичка гимназија","Београд","Бранислав Цветковић",20,17,5,20,8,70]
["Михаило Симић","да","Математичка гимназија","Београд","Иван Станић",16,10,17,8,18,69]
["Сања Ђукић","да","Математичка гимназија","Београд","Катарина Матић",20,3,5,20,20,68]
["Јована Виденовић","да","Гимназија \"Светозар Марковић\"","Ниш","Славољуб Митић",20,1,7,20,20,68]
["Александра Савић","ДА","Гимназија","Краљево","Предраг Савић",6,17,5,20,20,68]
["Никола Стојиљковић","да","Гимназија \"Светозар Марковић\"","Ниш","Иван Манчев",20,1,5,20,20,66]
["Борислав Петровић","да","Математичка гимназија","Београд","Александра Димић",20,0,17,7,20,64]
["Наташа Јовановић","ДА","Гимназија","Краљево","Предраг Савић",18,5,0,20,20,63]
["Андреја Дикић","да","Гимназија \"Светозар Марковић\"","Ниш","Славољуб Митић",20,2.5,10.6,13,16.8,62.900000000000006]
["Нико Кнежевић","да","Гимназија \"Светозар Марковић\"","Ниш","Славољуб Митић",16,10,10.6,5,20,61.6]
["Филип Стевановић","да","Земунска гимназија","Земун","Бојан Николић",20,3,5,12,20,60]
["Данило Ердељан","ДА","Гимназија „Ј.Ј. Змај“","Нови Сад","Мирослав Цветинов",2,6.5,10,20,20,58.5]
["Јовановић Ђорђе","ДА","Ваљевска гимназија","Ваљево","Предраг Стефановић",18,0,0,20,20,58]
["Алекса Ђукић","да","Математичка гимназија","Београд","Бранислав Цветковић",6,4,20,7,20,57]
["Лука Чубрило","ДА","Гимназија „Ј.Ј. Змај“","Нови Сад","Ненад Павловић",20,10,15,4,8,57]
["Петар Ивановић","да","Математичка гимназија","Београд","Бранислав Цветковић",20,0,10,15,8,53]
["Младен Пузић","да","Математичка гимназија","Београд","Иван Станић",20,3,15,7,8,53]
["Марко Павловић","ДА","Ваљевска гимназија","Ваљево","Предраг Стефановић",0,11,2,20,20,53]
["Илија Чоловић","ДА","Гимназија","Краљево","Предраг Савић",3,5,5,20,20,53]
["Милица Масић","ДА","Гимназија","Краљево","Предраг Савић",3,5,5,20,20,53]
["Вељко Николић","ДА","Гимназија „Ј.Ј. Змај“","Нови Сад","Стеван Јанков",14,5,5,20,8,52]
["Огњен Бањац","да","Математичка гимназија","Београд","Бранислав Цветковић",8,6,10,7,20,51]
["Мина Вулетић","да","Математичка гимназија","Београд","Александра Димић",2,3,5,20,20,50]
["Филип Колџић","да","Математичка гимназија","Београд","Александра Димић",4,6,10,10,20,50]
["Филип Николић","да","Прва крагујевачка гимназија","Крагујевац","Катарина Ђорђевић",0,10,0,20,20,50]
["Бранислав Стојковић","да","Прва крагујевачка гимназија","Крагујевац","Катарина Ђорђевић",11,10,15,10,4,50]
["Лазар Милошевић","да","Математичка гимназија","Београд","Александра Димић",10,7,5,9,18,49]
["Никола Прцовић","ДА","Гимназија „Ј.Ј. Змај“","Нови Сад",null,3,5,15,6,20,49]
["Петра Поповић","да","Гимназија \"Светозар Марковић\"","Ниш","Славољуб Митић",2,5,10,12,20,49]
["Магдалина Јелић","да","Математичка гимназија","Београд","Иван Станић",17,3,5,4,16,{"$f":"SUM(F103:J103)","v":45}]
["Милош Максимовић","да","Математичка гимназија","Београд","Катарина Матић",2,6,0,18,16,42]
["Никола Васић","да","Гимназија \"Светозар Марковић\"","Ниш","Славољуб Митић",7,3,2,10,20,42]
["Мирко Луковић","ДА","Гимназија","Краљево","Предраг Савић",12,0,0,14,16,42]
["Никола Богосављевић","да","Математичка гимназија","Београд","Александра Димић",14,0,0,7,20,41]
["Наталија Бранковић","да","Гимназија \"Светозар Марковић\"","Ниш","Славољуб Митић",5,3,10.6,12,10,40.6]
["Иван Михаиловић","да","Математичка гимназија","Београд","Бранислав Цветковић",15,6,0,1,18,40]
["Павле Смиљанић","да","Математичка гимназија","Београд","Иван Станић",3,3,20,4,8,38]
["Александар Гаврић","ДА","Гимназија „Ј.Ј. Змај“","Нови Сад","Ненад Павловић",0,0,10,20,8,38]
["Лазар Жујовић","ДА","Ваљевска гимназија","Ваљево","Предраг Стефановић",18,0,0,0,20,38]
["Андрија Стевановић","да","Гимназија \"Светозар Марковић\"","Ниш","Славољуб Митић",2,0,10,15,10,37]
["Александар Марић","да","Математичка гимназија","Београд","Бранислав Цветковић",3,0,20,7,6,36]
["Матеја Смиљанић","да","Математичка гимназија","Београд","Александра Димић",8,6,5,3,12,34]
["Марко Мандић","да","Прва крагујевачка гимназија","Крагујевац","Катарина Ђорђевић",20,0,0,10,4,34]
["Стефан Цветић","да","Прва крагујевачка гимназија","Крагујевац","Катарина Ђорђевић",2.5,0,7,20,4,33.5]
["Никола Стојановић","да","Математичка гимназија","Београд","Александра Димић",15,0,5,5,8,33]
["Ана Филипов","ДА","Гимназија „Ј.Ј. Змај“","Нови Сад","Стеван Јанков",2,3.5,5,8,8,26.5]
["Никола Радовановић","да","Гимназија \"Светозар Марковић\"","Ниш","Славољуб Митић",0,5,6,10,4,25]
["Љубомир Гојковић","ДА","Гимназија „Ј.Ј. Змај“","Нови Сад","Стеван Јанков",0,0,0,4,16,20]
["Павле Лалић","да","Математичка гимназија","Београд","Бранислав Цветковић",0,6,0,1,8,15]
["Јевтић Давид","ДА","Ваљевска гимназија","Ваљево","Предраг Стефановић",5,0,0,3,2,10]
["Бошко Андрић","да","Гимназија \"Светозар Марковић\"","Ниш","Славољуб Митић",2,0,0,5,1,8]
["Урош Круљ","да","Гимназија \"Светозар Марковић\"","Ниш","Иван Манчев",0,0,0,0,0,0]

{"sheet":"2. razred fermioni","index":2,"n_rows":172,"n_cols":12,"rows_kept":172,"merged":[[0,0,0,11],[3,0,3,2],[4,6,4,11]]}
["ДРУГИ  РАЗРЕД ФЕРМИОНИ"]
[]
[]
[]
[{"$nulls":6},"Освојено бодова (ненормираних)"]
["Име и презиме","посебно\nодељење\n(ДА / НЕ)","Назив школе","Место","Име и презиме\nнаставника","Зад.1","Зад.2","Зад.3","Зад.4","Зад.5","Ук.","Награда"]
["Лука Савић","НЕ","Гимназија Лесковац"," Лесковац","Злопорубовић Драгана",20,11,17,6,18,{"$f":"SUM(F7:J7)","v":72}]
["Урош Бојанић","не","Гимназија Лазаревац ","Лазаревац","Александар Димитријевић",5,20,17,4,19,65]
["Димитрије Маринковић","не","Електротехничка школа ''Миладин Поповић''","Приштина-Сушица","Јовица Мишковић",10,20,10,5,20,65]
["Александар Ђорђевић","НЕ","Гимназија \"Борислав Петров Браца\"","Вршац","Анђела Спасић",18,20,2,2,20,62]
["Марија Ђорђевић","не","Шабачка гимназија","Шабац","Јасмина Ђокић-Јовановић",3,20,12,6,19,60]
["Алекса Стефановић","не","Гимназија Пирот","Пирот","Мирјана Еленков",8,20,9,10,12,59]
["Лазар Лукић","не","Гимназија Пирот","Пирот","Мирјана Еленков",10,18,9,17,0,54]
["Никола Петрески","не","Шабачка гимназија","Шабац","Јасмина Ђокић-Јовановић",20,6,16,6,4,52]
["Јањић Алекса","не","Гимназија \"Вук Караџић\"","Лозница","Станковић Драган",3,20,18,6,2,49]
["Ивана Милићевић","не","Гимназија \"Бора Станковић\"","Бор","Моника Костић",4,7,18,4,15,48]
["Матија Цонић","не","3. гимназија","Београд","Бабић Светлана",13,10,19,0,6,48]
["Милош Јовановић","не","IX гимназија “Михаило Петровић – Алас”","Нови Београд","Дејан Јевтовић",18,0,6,4,20,48]
["Никола Богдановић","не","Гимназија Параћин","Параћин","Предраг Милошевић",7,15,0,6,20,48]
["Јован Вари ","НЕ","Гимназија \"Урош Предић\"","Панчево","Борислав Познатов",3,20,2,6,16,47]
["Марија Маринковић","не","Средња школа Свилајнац","Свилајнац","Ратомир Савић",5,15,11,8,8,47]
["Наташа Лазаревић","не","Гимназија \"Милош Савковић\"","Аранђеловац","Александар Момчиловић",5,18,17,6,0,46]
["Михаило Радојевић","не","Шабачка гимназија","Шабац","Јасмина Ђокић-Јовановић",15,11,7,6,7,46]
["Славко Крстић","НЕ","Митровачка гимназија","Ср.Митровица","Марија Куруцић",19,13,6,6,0,44]
["Николина Шкорић","не","Гимназија \"Милош Савковић\"","Аранђеловац","Александар Момчиловић",5,12,18,6,2,43]
["Душан Цвијетић ","НЕ","Гимназија \"Урош Предић\"","Панчево","Борислав Познатов",15,0,8,8,9,40]
["Зечевић Данило","НЕ","Гимназија \"Урош Предић\"","Панчево","Борислав Познатов",20,7,0,8,4,39]
["Немања Савески","не","Шабачка гимназија","Шабац","Јасмина Ђокић-Јовановић",3,11,11,6,7,38]
["Миња Вуковић","НЕ","Гимназија \"С. Марковић\"","Суботица","Мирко Киселички",6,10,6,6,10,38]
["Михајло Стојановић","НЕ","Гимназија Лесковац"," Лесковац","Злопорубовић Драгана",0,11,16,10,0,37]
["Андрија Кековић","не","Гимназија Крушевац","Крушевац","Добривоје Грчак",13,6,8,6,4,37]
["Лазар Тејић","не","Ужичка гимназија","Ужице","Снежана Јевђовић",19,11,5,0,2,37]
["Катарина Поповић","не","14. гимназија","Београд","Станчић Радојка",3,20,9,0,2,34]
["Лазар Крачуновић","не","Тринаеста београдска гимназија","Београд","Драган Ристић",7,9,13.6,2,2,33.6]
["Сандра Бркић","не","Шабачка гимназија","Шабац","Јасмина Ђокић-Јовановић",3,12,14,2,2,33]
["Јевтић Давид","НЕ","Средња школа \"Никола Тесла\"","Лепосавић","Дејан Краговић",7,10,16,0,0,33]
["Бајић Владимир","не","Гимназија \"Вук Караџић\"","Лозница","Станковић Драган",0,20,8,0,4,32]
["Вељко Милојевић","не","Гимназија Крушевац","Крушевац","Добривоје Грчак",6,14,3,6,3,32]
["Марија Крстић","не","Прва београдска гимназија","Београд","Виолета Лујић",6,9,11,4,2,{"$f":"SUM(F39:J39)","v":32}]
["Милан Мићевић","не","Тринаеста београдска гимназија","Београд","Драган Ристић",3,9,9,6,5,32]
["Миљана Здравковић","НЕ","Гимназија Лесковац"," Лесковац","Злопорубовић Драгана",0,4,16,10,0,30]
["Вељко Радојичић","НЕ","Гимназија „ Ј.Ј.Змај“","Нови Сад","Милка Веселиновић",2,9,10,4,5,30]
["Ђорђе Стојиљковић","не","14. гимназија","Београд","Станчић Радојка",4,6,15.6,4,0,29.6]
["Милош Павловић","НЕ","Гимназија Сава Шумановић","Шид","Бранимир Ћућа",5,6,2,12,4,29]
["Милена Јелић","НЕ","Гимназија \"20. октобар\"","Бачка Паланка","Нада Бајић Ђорђевић",0,7,4,0,18,29]
["Мила Павловић","не","IX гимназија “Михаило Петровић – Алас”","Нови Београд","Жељко Цветић",3,15,5,4,2,29]
["Вељко Тодић","НЕ","Гимназија \"С. Марковић\"","Суботица","Мирко Киселички",11,4,6,6,2,29]
["Катарина Вукомановић","не","Прва крагујевачка гимназија","Крагујевац","Весна Спасојевић",0,10,8,8,2,28]
["Јанко Митровић","не","Прва крагујевачка гимназија","Крагујевац","Ана Марковић",7,8,10,1,2,28]
["Драгана Тешић","НЕ","Митровачка гимназија","Ср. Митровица","Златко Шалић",0,16,6,4,2,28]
["Дајана Прерадовић","НЕ","Гимназија \"Вељко Петровић\"","Сомбор","Душан Мишковић",3,10,7,6,2,28]
["Стефан Обрадовић","не","14. гимназија","Београд","Вучићевић Радмила",4,14,9,0,0,27]
["Маја Стошић","не","Гимназија","Чачак","Јелена Перовић",3,8,11,4,1,27]
["Сергеј Милић","не","3. гимназија","Београд","Бабић Светлана",5,13,7,0,2,27]
["Лазар Станојевић","НЕ","Гимназија","Смедерево","Милутин Вучковић",3,4,10,8,2,27]
["Миљана Марић","не","Прва београдска гимназија","Београд","Виолета Лујић",7,2,15.6,0,2,26.6]
["Невена Василевска","не","Пожаревачка гимназија","Пожаревац","Маја Ј Глигоријевић",3,8,4,9,2,26]
["Ана Ћирковић","не","Прва београдска гимназија","Београд","Виолета Лујић",3,9,0,4,9,25]
["Даница Поп Крстић","не","Гимназија Пирот","Пирот","Мирјана Еленков",10,0,0,6,8,24]
["Милан Умељић","не","Гимназија Таковски устанак","Г.Милановац","Срђан Бабић",3,5,9,2,4,23]
["Шћепан Чукић","НЕ","Гимназија","Смедерево","Милутин Вучковић",0,12,5,4,2,23]
["Катарина Артуков","НЕ","Митровачка гимназија","Ср. Митровица","Златко Шалић",0,13,2,4,4,23]
["Анастасија Волчановска","не","Гимназија \"Светозар Марковић\"","Јагодина","Андријана Ђомлија",3,2,2,4,11,22]
["Милан Мирковић","не","Четврта гимназија","Београд","Данијела Пистолић",3,11,4,4,0,22]
["Коста Стојановић","не","14. гимназија","Београд","Вучићевић Радмила",4,7,2,0,9,22]
["Коста Младеновић","не","Гимназија Пирот","Пирот","Мирјана Еленков",10,8,4,0,0,22]
["Ана Дучић","НЕ","Гимназија \"Вељко Петровић\"","Сомбор","Душан Мишковић",3,8,3,6,2,22]
["Топаловић Игор","не","Ужичка гимназија","Ужице","Живојин Павловић",2,11,2,2,5,22]
["Маја Јефтовић","не","Прва београдска гимназија","Београд","Виолета Лујић",8,6,4,2,2,22]
["Тамара Смолчић","НЕ","Ваљевска гимназија","Ваљево","Предраг Стефановић",2,5,0,12,2,21]
["Стојковић Петар","НЕ","Гиманзија","Врњачка Бања","Марија Недељковић-Живковић",5,2,4,0,10,{"$f":"SUM(F71:J71)","v":21}]
["Никола Шормаз","НЕ","Гимназија „ Ј.Ј.Змај“","Нови Сад","Милка Веселиновић",0,10,2,4,4,20]
["Радосав Крунић","не","Гимназија","Чачак","Јелена Перовић",3,3,8,6,0,20]
["Ива Тулимировић","не","14. гимназија","Београд","Станчић Радојка",3,8,4,2,2,19]
["Марко Перовић","не","Гимназија Параћин","Параћин","Предраг Милошевић",2,12,2,0,2,18]
["Ђорђе Натић","не","Прва београдска гимназија","Београд","Виолета Лујић",8,0,6,2,2,18]
["Марко Вучић","не","Пожаревачка гимназија","Пожаревац","Милан Алексић",9,4,0,5,0,18]
["Ивана Гуцунски","НЕ","Гимназија „ Ј.Ј.Змај“","Нови Сад","Милка Веселиновић",4,4,4,4,2,18]
["Анђела Дамњановић","не","Гимназија Таковски устанак","Г.Милановац","Срђан Бабић",3,3,2,4,5,17]
["Мара Чутура","не","Гимназија \"Светозар Марковић\"","Јагодина","Славица Тодоровић",0,5,4,6,2,17]
["Алекса Делић","НЕ","Паланачка гимназија","Смедеревска Паланка","Горан Ивковић",0,6,0,6,5,17]
["Александар Станковић","не","3. гимназија","Београд","Ђикановић Бранка",1,7,6,0,2,16]
["Катарина Благојев","Не","Зрењанинска гимназија","Зрењанин","Никола Танкосић",3,3,9,1,0,16]
["Вељко Ускоковић","НЕ","Ваљевска гимназија","Ваљево","Предраг Стефановић",5,3,0,8,0,16]
["Лука Младеновић","не","Четврта гимназија","Београд","Светлана Петровић Кураица",3,2,6,2,2,15]
["Марија Аздејковић","не","Гимназија Крушевац","Крушевац","Нада Савић",3,3,4,2,3,15]
["Жупац Вељко","НЕ","Гимназија","Врњачка Бања","Марија Недељковић-Живковић",3,0,2,0,10,15]
["Лазар Вуковић","НЕ","Гимназија \"Свети Сава\"","Пожега","Иван Смиљанић",5,6,4,0,0,15]
["Арбереша Велиу","не","Гимназија \" Скендербег \"","Прешево","Хирмете Велиу",0,8,0,6,0,14]
["Лазар Обрадовић","не","Гимназија Крушевац","Крушевац","Добривоје Грчак",1,4,4,2,3,14]
["Теодор Сакал Францишковић","НЕ","Гимназија \"С. Марковић\"","Суботица","Мирко Киселички",0,2,0,10,2,14]
["Јана Пашајлић","НЕ","Гимназија ","Рашка","Ирена Мутавџић",0,0,0,4,10,14]
["Стефан Јелић","НЕ","Ваљевска гимназија","Ваљево","Оливера Црнобрња",5,4,0,4,0,13]
["Ана Радовић","не","3. гимназија","Београд","Бабић Светлана",1,2,4,0,6,13]
["Новак Шипетић","не","IX гимназија “Михаило Петровић – Алас”","Нови Београд","Дејан Јевтовић",1,0,7,2,3,13]
["Петар Симић","не","Гимназија Параћин","Параћин","Предраг Милошевић",4,5,0,2,2,13]
["Алекса Јаковљевић","не","Гимназија Крушевац","Крушевац","Добривоје Грчак",2,6,4,0,1,13]
["Драган Бекчић","не","Гимназија Крушевац","Крушевац","Добривоје Грчак",1,6,3,3,0,13]
["Лазар Станојевић","НЕ","Гимназија Зајечар","Зајечар","Александар Марковић",0,5,6,2,0,13]
["Младеновић Павле","НЕ","Гимназија","Врњачка Бања","Марија Недељковић-Живковић",0,0,0,2,10,12]
["Ана Анђелић","НЕ","Гимназија \"Вељко Петровић\"","Сомбор","Душан Мишковић",6,1,2,2,1,12]
["Барбара Фанфани","не","Прва београдска гимназија","Београд","Виолета Лујић",1,3,4,4,0,12]
["Филип Јанда","не","Прва београдска гимназија","Београд","Виолета Лујић",0,5,4,0,2,{"$f":"SUM(F103:J103)","v":11}]
["Богдан Гојгић","не","Гимназија","Чачак","Јелена Перовић",0,3,2,4,2,11]
["Лука Милољубовић","не","Гимназија Крушевац","Крушевац","Гордана Настић",1,4,4,0,2,11]
["Невена Даљевић","Не","Зрењанинска гимназија","Зрењанин","Никола Танкосић",2,6,1,2,0,11]
["Иван Стаменковић","не","Гимназија Прокупље","Прокупље","Бранислав Росић",3,0,0,8,0,11]
["Александар Урошевић","не","Гимназија","Чачак","Јелена Перовић",3,0,2,6,0,11]
["Марија Димитријевић","не","Гимназија \"Светозар Марковић\"","Јагодина","Славица Тодоровић",2,1,2,4,2,11]
["Марковић Новица","НЕ","Ваљевска гимназија","Ваљево","Оливера Црнобрња",5,3,0,2,0,10]
["Милан Милошевић","не","Алексиначка гимназија","Алексинац","Славољуб Рaдулoвић",3,3,0,2,2,10]
["Ленка Стојков","Не","Зрењанинска гимназија","Зрењанин","Никола Танкосић",0,1,5,4,0,10]
["Тања Недељков","НЕ","Гимназија \"Вељко Петровић\"","Сомбор","Душан Мишковић",3,3,1,1,2,10]
["Михаило Пантић","не","Гимназија \"Светозар Марковић\"","Јагодина","Љиљана Николић",0,5,0,2,3,10]
["Константин Беновић","не","IX гимназија “Михаило Петровић – Алас”","Нови Београд","Жељко Цветић",3,3,2,0,0,8]
["Јован Матић","не","IX гимназија “Михаило Петровић – Алас”","Нови Београд","Жељко Цветић",0,0,3,2,2,7]
["Јован Рајшић","не","Земунска гимназија","Земун","Драган Манић",0,2,2,3,0,7]
["Никола Станојевић","не","Пета београдска гимназија","Београд","Јасмина Јешић",3,2,0,0,2,7]
["Нина Зиндовић ","НЕ","Гимназија \"Исидора Секулић\"","Нови Сад","Марина Дороцки",0,3,4,0,0,7]
["Анђела Краговић","НЕ","Гимназија ","К. Митровица","Слободан Михајловић",3,0,0,4,0,7]
["Исидора Софијанић","НЕ","Средња школа \"свети Ахилије\"","Ариље","Милија Топаловић",0,2,0,4,0,6]
["Стефан Николић","Не","Гимназија\"Јосиф Панчић\"","Бајина Башта","Никола Јовановић",0,6,0,0,0,6]
["Ања Ђурић","не","Прва београдска гимназија","Београд","Виолета Лујић",2,3,1,0,0,6]
["Младен Лулић","не","VI београдска гимназија","Београд","Тијана Маринковић",3,0,1,2,0,6]
["Иван Ђурђевић","не","Средња школа \"Свети Сава\"","Кладово","Иван Стојановић",0,0,2,4,0,6]
["Миа Вукoвић","не","Алексиначка гимназија","Алексинац","Славољуб Рaдулoвић",3,1,0,2,0,6]
["Милетић Алекса","не","Гимназија Параћин","Параћин","Предраг Милошевић",0,4,0,2,0,6]
["Исидора Николић","НЕ","Гимназија \"Вељко Петровић\"","Сомбор","Душан Мишковић",0,5,0,0,1,6]
["Ален Хасовић","не","Гимназија \" Пиво Караматијевић\"","нова Варош","Мевлудин Башовић",3,0,3,0,0,6]
["Андрија Јовановић","не","Гимназија","Чачак","Јелена Перовић",0,0,0,6,0,6]
["Лука Жуковски","не","Пожаревачка гимназија","Пожаревац","Маја Ј Глигоријевић",0,0,0,5,0,5]
["Вук Стефановић","не","Средња школа Велико Градиште","Велико Градиште","Тодор Драгољевић",0,5,0,0,0,5]
["Димитрије Марковић","не","Средња школа Брус","Брус","Жаклина Ђорђевић",0,3,2,0,0,5]
["Александра Савић","НЕ","Средња школа \"свети Ахилије\"","Ариље","Милија Топаловић",0,0,0,0,5,5]
["Баћковић Давид","Не","Ужичка гимназија","Ужице","Живојин Павловић",0,3,0,2,0,{"$f":"SUM(F135:J135)","v":5}]
["Никола Маркановић","не","Земунска гимназија","Земун","Владан Игић",0,0,4,0,0,4]
["Лука Лазаревић","не","Пета београдска гимназија","Београд","Јасмина Јешић",0,0,0,4,0,4]
["Илија Стефановић","НЕ","Књажевачка гимназија","Књажевац","Милијан Срејић",3,1,0,0,0,4]
["Филип Дробњаковић","не","Гимназија \" Пиво Караматијевић\"","Нова Варош","Мевлудин Башовић",0,0,2,0,2,4]
["Немања Антонић","не","Гимназија Таковски устанак","Г.Милановац","Срђан Бабић",0,0,0,4,0,4]
["Алекса Костић","не","Гимназија \"Бора Станковић\"","Бор","Моника Костић",0,0,3,0,0,3]
["Михаило Миленковић","не","Пожаревачка гимназија","Пожаревац","Маја Ј Глигоријевић",3,0,0,0,0,3]
["Јован Белдар","НЕ","Гимназија Сава Шумановић","Шид","Бранимир Ћућа",0,3,0,0,0,3]
["Крстић Никола","не","Средња школа","Крупањ","Раде Грујић",0,0,1,2,0,3]
["Јован Димитријевић","не","Техничка школа \" Никола Тесла \"","Сурдулица","Братислав Радовановић",3,0,0,0,0,3]
["Ботонд Коханец","НЕ","Гимназија и економска школа \"Д. Обрадовић\"","Бачка Топола","Петер Фараго",3,0,0,0,0,3]
["Стефан Дрљевић","не","Четврта гимназија","Београд","Данијела Пистолић",0,0,0,0,2,2]
["Иван Савић","не","Средња школа \"Свети Сава\"","Кладово","Иван Стојановић",0,0,2,0,0,2]
["Петар Радивојевић","не","Гимназија \"Бора Станковић\"","Бор","Моника Костић",0,2,0,0,0,2]
["Марко Недић","НЕ","Гимназија \"Жарко Зрењанин\"","Врбас","Снежана Драшковић",0,0,0,0,2,2]
["Теодора Атанацковић","не","Медицинска школа \"Андра Јовановић\"","Шабац","Срећко Илић",0,0,0,0,2,2]
["Богдан Дракулић","не","Шабачка гимназија","Шабац","Јасмина Ђокић-Јовановић",0,0,1,0,1,2]
["Немања Дојић","не","Средња школа","Крупањ","Раде Грујић",0,0,0,0,2,2]
["Даниел Рац Сабо","не","Сенћанска гимназија","Сента","Лаура Ароксалаши",2,0,0,0,0,2]
["Адам Догнар","не","Сенћанска гимназија","Сента","Лаура Ароксалаши",2,0,0,0,0,2]
["Јована Радојичић","не","Гимназија \"Милош Савковић\"","Аранђеловац","Далибор Делибашић",0,0,2,0,0,2]
["Сава Костић","НЕ","Гимназија Зајечар","Зајечар","Александар Марковић",0,0,0,0,2,2]
["Матеја Петровић","НЕ","Књажевачка гимназија","Књажевац","Милијан Срејић",2,0,0,0,0,2]
["Aнaстaсиjа Брaнчић","не","Алексиначка гимназија","Алексинац","Братислав Симић",0,1,0,0,0,1]
["Настасија Стaнкoвић","не","Алексиначка гимназија","Алексинац","Братислав Симић",0,1,0,0,0,1]
["Ђорће Аксентијевић","Не","Гимназија\"Јосиф Панчић\"","Бајина Башта","Никола Јовановић",0,0,0,0,0,0]
["Ђорђе Митровић","не","Гимназија \"Стеван Сремац\"","Ниш","Владимир Милићевић",0,0,0,0,0,0]
["Владан Павловић","не","Гимназија Таковски устанак","Г.Милановац","Срђан Бабић",0,0,0,0,0,0]
["Данило Милошевић","не","Гимназија \"Бора Станковић\"","Ниш","Ивана Радоњић Митић",0,0,0,0,0,0]
["Маша Вуксaнoвић","не","Алексиначка гимназија","Алексинац","Братислав Симић",0,0,0,0,0,0]
["Милица Стојановић","не","Гимназија \" Јован Скерлић \"","Владичин Хан","Раде Стојановић",0,0,0,0,0,0]
["Маша Новаковић","не","Гимназија у Ћуприји","Ћуприја","Славица Илић",0,0,0,0,0,{"$f":"SUM(F167:J167)","v":0}]
["Давид Терењи","НЕ","Гимназија \"С. Марковић\"","Суботица","Мирко Киселички",0,0,0,0,0,0]
["Маријана Тодоровић","Не","Гимназија\"Јосиф Панчић\"","Бајина Башта","Никола Јовановић",0,0,0,0,0,0]
["Немања Божовић","Не","Гимназија\"Јосиф Панчић\"","Бајина Башта","Никола Јовановић",0,0,0,0,0,0]
["Дамјан Живановић","Не","Гимназија\"Јосиф Панчић\"","Бајина Башта","Никола Јовановић",0,0,0,0,0,0]
["Милинко Шапоњић","НЕ","Средња школа \"свети Ахилије\"","Ариље","Милија Топаловић",0,0,0,0,0,0]

{"sheet":"2. razred bozoni","index":3,"n_rows":82,"n_cols":12,"rows_kept":82,"merged":[[0,1,0,12],[3,1,3,3],[4,7,4,11]]}
[null,"ДРУГИ  РАЗРЕД БОЗОНИ"]
[]
[]
[]
[{"$nulls":7},"Освојено бодова (ненормираних)"]
["Презиме и име","посебно\nодељење\n(ДА / НЕ)","Назив школе","Место","Име и презиме\nнаставника","Зад.1","Зад.2","Зад.3","Зад.4","Зад.5","Ук.","Награда"]
["Јелена Илић","да","Математичка гимназија","Београд","Наташа Чалуковић",20,20,20,14,20,{"$f":"SUM(F7:J7)","v":94}]
["Богдана Ђорђевић","да","Гимназија \"Светозар Марковић\"","Ниш","Јелена Ђорђевић",20,20,20,10,20,90]
["Нина Матић","ДА","Ваљевска гимназија","Ваљево","Дејан Ђокић",20,20,20,6,20,86]
["Виктор Мирјанић Владимир","да","Математичка гимназија","Београд","Наташа Чалуковић",20,16,18.2,2,20,76.2]
["Валентина Њаради","да","Математичка гимназија","Београд","Наташа Чалуковић",20,20,7,9,20,76]
["Милан Ђукић","да","Математичка гимназија","Београд","Јовица Милисављевић",20,19,20,0,14,73]
["Драгана Нинковић","да","Математичка гимназија","Београд","Иван Станић",16,20,10,6,20,72]
["Ирена Столић","да","Математичка гимназија","Београд","Вишња Јовановић",14,20,20,4,12,70]
["Ђорђе Трифуновић","ДА","Ваљевска гимназија","Ваљево","Дејан Ђокић",20,19,16,8,6,69]
["Матеја Здравковић","да","Математичка гимназија","Београд","Наташа Чалуковић",20,15,20,2,12,69]
["Лазар Миликић","да","Математичка гимназија","Београд","Иван Станић",17,10,20,2,20,69]
["Богдан Томић","да","Математичка гимназија","Београд","Јовица Милисављевић",20,14,18.2,0,12,64.2]
["Ренеа  Мошо","ДА","Гимназија „ Ј.Ј.Змај“","Нови Сад","Снежана Булајић",19,20,16,6,2,63]
["Лазар Златић","да","Математичка гимназија","Београд","Иван Станић",20,20,6,4,12,62]
["Дејан Гјер","ДА","Гимназија „ Ј.Ј.Змај“","Нови Сад","Снежана Булајић",16,18,16,10,2,62]
["Милица Алексић","да","Гимназија \"Светозар Марковић\"","Ниш","Јелена Ђорђевић",2,20,16,4,20,62]
["Селена Богојевић","да","Математичка гимназија","Београд","Иван Станић",18,17,16,8,3,62]
["Маша Тиосављевић","да","Математичка гимназија","Београд","Катарина Матић",16,10,8,6,19,59]
["Наталија Ћоровић","да","Математичка гимназија","Београд","Иван Станић",16,19,10,2,11,58]
["Милена Мићић","да","Математичка гимназија","Београд","Наташа Чалуковић",10,16,20,0,12,58]
["Филип Миљевић","да","Математичка гимназија","Београд","Вишња Јовановић",20,10,10,2,16,58]
["Анђела Ковачевић","да","Математичка гимназија","Београд","Иван Станић",3,9,20,6,20,58]
["Иља Бујишић Узелац","да","Математичка гимназија","Београд","Наташа Чалуковић",20,15,4,0,18,57]
["Срђан Кузмановић","ДА","Гимназија \"Ј.Ј.Змај\"","Нови Сад","Снежана Булајић",19,20,6,6,4,55]
["Корсић Лазар","да","Математичка гимназија","Београд","Наташа Чалуковић",19,0,16,0,20,55]
["Веселин Исаиловић","да","Математичка гимназија","Београд","Вишња Јовановић",20,12,8,5,9,54]
["Дуња Прокић","да","Прва крагујевачка гимназија","Крагујевац","Катарина Ђорђевић",5,12,10,6,18,51]
["Игор Пијевац","ДА","Гимназија „ Ј.Ј.Змај“","Нови Сад","Снежана Булајић",9,18,15,6,3,51]
["Немања Јовановић","да","Математичка гимназија","Београд","Катарина Матић",3,13,7,8,20,51]
["Сергеј Прошић","да","Математичка гимназија","Београд","Иван Станић",5,20,16,3,7,51]
["Сара Новаковић","да","Математичка гимназија","Београд","Иван Станић",16,9,10,12,2,49]
["Марија Влајић","да","Математичка гимназија","Београд","Иван Станић",12,19,8,0,9,{"$f":"SUM(F38:J38)","v":48}]
["Филип Херчег","ДА","Јован Јовановић Змај","Нови Сад",null,20,18,3,4,2,47]
["Лазар Галић","да","Математичка гимназија","Београд","Наташа Чалуковић",15,19,3,2,8,47]
["Никола Мићовић","да","Гимназија \"Светозар Марковић\"","Ниш","Дејан Димитријевић",8,12,9,2,15,46]
["Никола Даниловић","ДА","Ваљевска гимназија","Ваљево","Дејан Ђокић",7,16,4,8,11,46]
["Тијана Петровић","да","Математичка гимназија","Београд","Јовица Милисављевић",10,19,5,4,6,44]
["Ана Милошевић","да","Гимназија \"Светозар Марковић\"","Ниш","Јелена Ђорђевић",2,18,2,6,15,43]
["Александра Петковић","да","Гимназија \"Светозар Марковић\"","Ниш","Дејан Димитријевић",5,20,12,2,4,43]
["Јелена Маринковић","да","Прва крагујевачка гимназија","Крагујевац","Катарина Ђорђевић",20,9,3,10,0,42]
["Михаило Јовановић","да","Прва крагујевачка гимназија","Крагујевац","Катарина Ђорђевић",7,8,2,6,18,41]
["Настасија Цонић","да","Математичка гимназија","Београд","Јовица Милисављевић",5,17,11,2,6,41]
["Теодора Радаљац","да","Математичка гимназија","Београд","Вишња Јовановић",5,4,6,7,18,40]
["Михаило Алексић","да","Математичка гимназија","Београд","Наташа Чалуковић",20,8,5,4,2,39]
["Исидора Бурмаз","да","Математичка гимназија","Београд","Наташа Чалуковић",20,6,8,2,2,38]
["Андријана Миковић","да","Прва крагујевачка гимназија","Крагујевац","Катарина Ђорђевић",10,12,5,6,5,38]
["Никола Кубуровић","да","Математичка гимназија","Београд","Иван Станић",18,8,5,1,6,38]
["Виктор Убовић","да","Математичка гимназија","Београд","Катарина Матић",20,3,4,4,6,37]
["Маћаш Бриндза","да","Гимназија \"Бољаи\"","Сента","Арпад Бордаш",3,0,3,10,20,36]
["Иван Пешић","да","Математичка гимназија","Београд","Наташа Чалуковић",19,1,1,6,7,34]
["Марија Зелић","да","Математичка гимназија","Београд","Иван Станић",1,9,16,5,2,33]
["Сава Јевтић","ДА","Математићка гимназија","Београд",null,2,20,8,0,2,32]
["Петар Радмилац","да","Прва крагујевачка гимназија","Крагујевац","Катарина Ђорђевић",5,13,12,0,0,30]
["Александар Гецић","ДА","Гимназија „ Ј.Ј.Змај“","Нови Сад","Снежана Булајић",6,5,6,8,5,30]
["Михаило Миленковић","ДА","Гимназија „ Ј.Ј.Змај“","Нови Сад","Снежана Булајић",9,10,2,6,2,29]
["Лука Лазаревић","да","Гимназија \"Светозар Марковић\"","Ниш","Дејан Димитријевић",3,3,10,2,10,28]
["Милош Миловановић","ДА","Ваљевска гимназија","Ваљево","Дејан Ђокић",2,0,6,0,20,28]
["Леон Коња","да","Гимназија \"Бољаи\"","Сента","Арпад Бордаш",3,11,7,2,5,28]
["Милица Гаљак","да","Математичка гимназија","Београд","Јовица Милисављевић",7,5,9,2,4,27]
["Милица Тубин","да","Математичка гимназија","Београд","Јовица Милисављевић",9,3,5,2,6,25]
["Алекса Цакић","да","Математичка гимназија","Београд","Катарина Матић",7,4,10,0,3,24]
["Анђела Мишковић","ДА","Ваљевска гимназија","Ваљево","Дејан Ђокић",5,4,4,6,5,24]
["Миа Спасић","да","Гимназија \"Светозар Марковић\"","Ниш","Дејан Димитријевић",3,3,4,4,10,24]
["Ђорђе Мартић","да","Математичка гимназија","Београд","Наташа Чалуковић",4,6,6,0,7,{"$f":"SUM(F70:J70)","v":23}]
["Миљан Петковић","да","Гимназија \"Светозар Марковић\"","Ниш","Јелена Ђорђевић",5,5,4,4,2,20]
["Алекса Станић","ДА","Ваљевска гимназија","Ваљево","Дејан Ђокић",0,16,0,4,0,20]
["Сара Биочанин","да","Прва крагујевачка гимназија","Крагујевац","Катарина Ђорђевић",7,4,0,2,6,19]
["Кристина Рајковић","ДА","Ваљевска гимназија","Ваљево","Дејан Ђокић",0,8,2,5,4,19]
["Милана Марић","да","Математичка гимназија","Београд","Јовица Милисављевић",3,3,6,2,5,19]
["Јовановић Александар","да","Математичка гимназија","Београд","Иван Станић",3,5,8,0,0,16]
["Љубица Пешић","да","Гимназија \"Светозар Марковић\"","Ниш","Јелена Ђорђевић",0,6,1,6,0,13]
["Павле Вучковић","да","Прва крагујевачка гимназија","Крагујевац","Катарина Ђорђевић",0,8,0,0,4,12]
["Душан Игић","да","Гимназија \"Светозар Марковић\"","Ниш","Дејан Димитријевић",3,0,0,6,2,11]
["Петар Станчић","да","Гимназија \"Светозар Марковић\"","Ниш","Дејан Димитријевић",5,0,0,0,4,9]
["Тамара Поњавић","да","Математичка гимназија","Београд","Наташа Чалуковић","Дисквалификована",{"$nulls":4},0]
["Василије Кадић","да","Прва крагујевачка гимназија","Крагујевац","Катарина Ђорђевић",0,0,0,0,0,0]

{"sheet":"3. razred fermioni","index":4,"n_rows":138,"n_cols":12,"rows_kept":138,"merged":[[0,0,0,12],[3,0,3,2],[4,6,4,11]]}
["ТРЕЋИ  РАЗРЕД ФЕРМИОНИ"]
[]
[]
[]
[{"$nulls":6},"Освојено бодова (ненормираних)"]
["Име и презиме","посебно\nодељење\n(ДА / НЕ)","Назив школе","Место","Име и презиме\nнаставника","Зад.1","Зад.2","Зад.3","Зад.4","Зад.5","Ук.","Награда"]
["Павлов Димитрије","не","Гимназија \"Вук Караџић\"","Лозница","Станковић Драган",20,20,20,20,20,{"$f":"SUM(F7:J7)","v":100}]
["Милан Данковић","не","Гимназија \"Бора Станковић\"","Ниш","Снежана Јанковић",18,20,20,20,20,98]
["Ленка Ристивојевић","НЕ","Митровачка гимназија","Ср.Митровица","Јанко Јовановић",20,20,20,20,5,85]
["Наталија Топаловић","не","Шабачка гимназија","Шабац","Снежана Вуковић",20,5,20,20,20,85]
["Анђелка Вучовић","не","Гимназија Параћин","Параћин","Предраг Милошевић",20,14,12,18,20,84]
["Александар Граховац","НЕ","Гимназија \"С. Марковић\"","Суботица","Мирко Киселички",19,20,20,20,4,83]
["Бојана Ћосовић","не","Гимназија Крушевац","Крушевац","Гордана Настић",20,12,9,20,20,81]
["Илија Савић","не","Гимназија Крушевац","Крушевац","Миланка Илић",20,20,2,18,20,80]
["Драган Калафатовић","НЕ","Гимназија","Краљево","Драгана Милуновић",15,20,3,14,20,72]
["Катанић Слободан","не","Гимназија \"Вук Караџић\"","Лозница","Станковић Драган",20,0,11,20,19,70]
["Нађа Бранковић","не","Гимназија у Ћуприји","Ћуприја","Дарко Миљанић",18,10,4,16,20,68]
["Никола Симић","не","Шабачка гимназија","Шабац","Снежана Вуковић",19,3,2,20,20,64]
["Теодора Павличевић","не","Гимназија Крушевац","Крушевац","Иван Зорнић",20,8,20,4,12,64]
["Адам Благојевић","не","Пета београдска гимназија","Београд","Јасмина Јешић",18,20,2,20,4,64]
["Јован Витошевић","не","Гимназија Пирот","Пирот","Нина Јовановић",20,20,4,14,5,63]
["Лука Курељушић","НЕ","Гимназија \"С. Марковић\"","Суботица","Мирко Киселички",19,8,11,19,6,63]
["Лука Томановић","не","ЕТШ\"Никола Тесла\"","Београд","Данијела Лазић",16.5,2,20,20,4,62.5]
["Бодин Бизетић","не","IX гимназија “Михаило Петровић – Алас”","Нови Београд","Слободанка Реџић",15,3,18,14,12,62]
["Јован Пиргић","не","Пожаревачка гимназија","Пожаревац","Зорица Алексић",20,0,20,20,2,62]
["Сара Цвијановић","НЕ","Митровачка гимназија","Ср. Митровица","Јанко Јовановић",20,14,3,20,5,62]
["Јован Крунић","не","Прва београдска гимназија","Београд","Виолета Лујић",20,2,1,18,20,61]
["Здравко Бјелић","НЕ","Гимназија Сава Шумановић","Шид","Бранимир Ћућа",6,14,9,16,16,61]
["Ђукић Давид","не","Гимназија \"Вук Караџић\"","Лозница","Станковић Драган",3,18,2,20,18,61]
["Ласло Ури","НЕ","Гимназија \"Вељко Петровић\"","Сомбор","Рената Фирстнер",19,16,18,6,2,61]
["Владимир Стефановић","не","Гимназија Пирот","Пирот","Нина Јовановић",20,20,1,14,5,60]
["Никола Манић","не","Гимназија Пирот","Пирот","Нина Јовановић",20,20,1,14,5,60]
["Емилија Ђорђевић","НЕ","Гимназија","Смедерево","Весна Симоновић",20,10,7,20,3,60]
["Кристина Станковић","не","Шабачка гимназија","Шабац","Снежана Вуковић",20,10,5.5,18,6,59.5]
["Душан Божић","не","Прва београдска гимназија","Београд","Славиша Весић",16,20,7,14,2,59]
["Душан Богојевић","не","14. гимназија","Београд","Никола Петровић",15,2,4,19,19,59]
["Павле Вођевић","не","ЕТШ\"Никола Тесла\"","Београд","Данијела Лазић",16,13,12,16,2,59]
["Јордан Грујић","НЕ","Гимназија","Краљево","Ивана Дугалић",18,20,15,2,4,59]
["Александар Динчић","не","Гимназија \"Светозар Марковић\"","Јагодина","Славица Тодоровић",18,10,0,20,10,{"$f":"SUM(F39:J39)","v":58}]
["Никола Кајтес","НЕ","Гимназија „ Ј.Ј.Змај“","Нови Сад","Златко Штрбац",20,12,3,20,2,57]
["Урош Пешић","НЕ","Гимназија Лесковац","Лесковац","Стоиљковић Синиша",0,10,17,8,20,55]
["Лука Коновалов","не","Гимназија \"Светозар Марковић\"","Јагодина","Славица Тодоровић",20,5,0,14,16,55]
["Ања Ковачевић","не","Тринаеста београдска гимназија","Београд","Веско Ђаловић",20,2,10,20,2,54]
["Никола Илић","не","Гимназија \"Бора Станковић\"","Ниш","Жељко Младеновић",5,4,14,12,16,51]
["Стеван Матавуљ","не","IX гимназија “Михаило Петровић – Алас”","Нови Београд","Слободанка Реџић",15,4,15,14,2,50]
["Срефан Тошић","не","14. гимназија","Београд","Мира Новаковић Кљајић",17,13,0,14,5,49]
["Михајло Плавшић","не","Гимназија Црњански","Београд","Ненад Головић",19,3,2,5,20,49]
["Петар Пејић","не","Гимназија Параћин","Параћин","Предраг Милошевић",17,5,0,14,12,48]
["Владимир Јанковић","не","Гимназија Крушевац","Крушевац","Иван Зорнић",10,20,2,8,8,48]
["Петар Петрашиновић","не","Гимназија ''Вук Караџић''","Трстеник","Јоксић Милан",12,4,20,8,3,47]
["Лука Бјелица","Не","Зрењанинска гимназија","Зрењанин","Никола Танкосић",0,20,11,14,2,47]
["Јана Масловарић","не","Прва београдска гимназија","Београд","Славиша Весић",17,4,8,14,2,45]
["Нађа Ђорђевић","не","Гимназија Пирот","Пирот","Нина Јовановић",20,2,3,14,5,44]
["Матија Бошковић","не","Гимназија \"Милош Савковић\"","Аранђеловац","Александар Момчиловић",20,4,0,14,5,43]
["Ивана Дробац","НЕ","Гимназија „ Ј.Ј.Змај“","Нови Сад","Ненад Павловић",0,14,3,20,5,42]
["Ивана Ћосић ","НЕ","Гимназија \"Урош Предић\"","Панчево","Јасмина Ћосић",17,0,3,17,5,42]
["Лука Булаја ","НЕ","Зрењанинска гимназија","Зрењанин",null,18,20,4,0,0,42]
["Исидора Манчић","не","Гимназија Пирот","Пирот","Нина Јовановић",20,0,3,14,5,42]
["Лука Маринковић","не","Гимназија Параћин","Параћин","Предраг Милошевић",0,20,0,5,16,41]
["Иван Лубурић","Не","Зрењанинска гимназија","Зрењанин","Никола Танкосић",0,20,2,15,4,41]
["Софија Ђурић","НЕ","Гимназија","Смедерево","Весна Симоновић",18,7,3,10,2,40]
["Огњен Јовановић","не","Шабачка гимназија","Шабац","Снежана Вуковић",19,0,14,6,0,39]
["Димитрије Ђорђевић","не","Гимназија Пирот","Пирот","Нина Јовановић",20,3,0,14,2,39]
["Андрија Фирез","не","Пета београдска гимназија","Београд","Јасмина Јешић",0,2,20,14,2,38]
["Дејан Станчевић","НЕ","Гимназија ,,Бранко Радичевић” ","Стара Пазова","Бранислав Ковач",13,12,8,0,5,38]
["Саима Кораћ ","НЕ","Гимназија","Нови Пазар","Бајрам Маврић",5,5,3,20,5,38]
["Марија Добрић","не","Прва крагујевачка гимназија","Крагујевац","Весна Спасојевић",20,4,0,14,0,38]
["Митар Аврамовић","не","Гимназија Крушевац","Крушевац","Иван Зорнић",0,20,7,10,0,37]
["Бранко Павловић","не","Прва крагујевачка гимназија","Крагујевац","Ана Жлибар",5,5,4,18,5,37]
["Јелисавета Јевтић","не","Ужичка гимназија","Ужице","Живојин Павловић",14,7,10,4,2,37]
["Ирина Петровић","не","IX гимназија “Михаило Петровић – Алас”","Нови Београд","Слободанка Реџић",6.5,3,4,19,4,{"$f":"SUM(F71:J71)","v":36.5}]
["Дамир Бербић","НЕ","Гимназија \"Урош Предић\"","Панчево","Јасмина Ћосић",20,5,5,3,3,36]
["Филип Живојиновић","не","ЕТШ\"Никола Тесла\"","Београд","Јасмина Радусин",1,2,10,20,2,35]
["Мина Кањевић","не","Гимназија","Чачак","Драган Андрић",0,20,1,8,4,33]
["Реџо Машовић","не","Гимназија \"Јездимир Ловић\"","Сјеница","Џетита Пушина",6,3,4,16,4,33]
["Андрија Котарац","Не","Гимназија Свети Сава","Пожега","Гордана Варница",19,6,1,4,3,33]
["Јанко Гаврић","не","Гимназија Крушевац","Крушевац","Иван Зорнић",5,5,4,14,4,32]
["Јелена Бошковић","не","Гимназија","Чачак","Бојана Лазаревић",7,0,1,18,5,31]
["Никола Ђукетић","НЕ","Гимназија \"С. Марковић\"","Суботица","Мирко Киселички",19,8,2,0,2,31]
["Стефана Богојевић","не","14. гимназија","Београд","Мира Новаковић Кљајић",0,13,1,14,2,30]
["Алекса Тимотијевић","НЕ","Гимназија","Краљево","Ивана Дугалић",5,6,3,14,2,30]
["Нина Стевановић","не","Прва крагујевачка гимназија","Крагујевац","Ана Жлибар",0,4,3,20,3,30]
["Марко Арсеновић","не","Пета београдска гимназија","Београд","Јасмина Јешић",17,2,0,8,2,29]
["Горан Татомиров","не","Гимназија \"Душан Васињев\"","Кикинда","Мариа Франциа",7,2,9,6,5,29]
["Христина Николић","не","Гимназија Пирот","Пирот","Нина Јовановић",15,2,3,0,8,28]
["Матија Матовић","не","Ужичка гимназија","Ужице","Живојин Павловић",20,0,1,2,4,27]
["Марија Димитријевић","не","Ужичка гимназија","Ужице","Живојин Павловић",5,4,11,2,4,26]
["Петар Хорват","не","ЕТШ\"Никола Тесла\"","Београд","Марина Арсић Пешић",0,0,3,20,2,25]
["Марија Трнавац","Не","Гимназија Таковски устанак","Г.Милановац","Срђан Бабић",15,2,0,8,0,25]
["Мерјем Селмановић  ","НЕ","Гимназија","Нови Пазар","Бајрам Маврић",0,5,3,14,3,25]
["Вук Бабић","Не","Гимназија\"Јосиф Панчић\"","Бајина Башта","Никола Јовановић",16,3,1,2,3,25]
["Јован Павловић","не","Пожаревачка гимназија","Пожаревац","Зорица Алексић",20,0,0,4,0,24]
["Теодора Чкаловски","НЕ","Гимназија","Краљево","Ивана Дугалић",0,5,0,14,5,24]
["Лука Ћирић","НЕ","Гимназија Зајечар","Зајечар","Мирјана Станојевић",6,3,5,8,2,24]
["Стефан Костић","не","Пета београдска гимназија","Београд","Јасмина Јешић",0,3,4,14,2,23]
["Тијана Алексић","не","Прва крагујевачка гимназија","Крагујевац","Ана Жлибар",0,4,0,14,5,23]
["Лазар Југовић","не","Ужичка гимназија","Ужице","Живојин Павловић",9,1,1,10,2,23]
["Милош Милошевић","Не","Пријепољска гимназија","Пријепоље","Иван Луковић",4,6,11,2,0,23]
["Душан Ранчев","не","Гимназија Пирот","Пирот","Нина Јовановић",20,0,0,0,2,22]
["Петар Мијалковић","не","Гимназија Пирот","Пирот","Нина Јовановић",20,2,0,0,0,22]
["Јована Јевремовић","Не","Гимназија\"Јосиф Панчић\"","Бајина Башта","Никола Јовановић",14,2,0,2,4,22]
["Софија Бојовић","не","Ужичка гимназија","Ужице","Живојин Павловић",6,6,0,4,5,21]
["Ђокић Маја","не","Гиманзија Приштина","Приштина-Л. Село","Сања Милосављевић",5,10,0,5,0,{"$f":"SUM(F103:J103)","v":20}]
["Марија Ћирић","НЕ","Гимназија \"Вељко Петровић\"","Сомбор","Душан Мишковић",5,0,10,2,3,20]
["Аница Арсић","НЕ","Шабачка гимназија","Шабац",null,0,5,7,5,2,19]
["Виктор Катзенбергер","НЕ","Гимназија „ Ј.Ј.Змај“","Нови Сад","Невена Радошевић",0,12,3,2,2,19]
["Михајло Ранђеловић","не","Гимназија Параћин","Параћин","Предраг Милошевић",0,0,3,0,15,18]
["Ана Дачковић","не","Средња школа Брус","Брус","Жаклина Ђорђевић",5,1,2,5,3,16]
["Јован Ђорђевић","Не","Гимназија\"Јосиф Панчић\"","Бајина Башта","Никола Јовановић",5,4,1,4,2,16]
["Филип Цветковић","не","ЕТШ\"Никола Тесла\"","Београд","Данијела Лазић",0,0,1,14,0,15]
["Кирил Охлопков","не","Прва београдска гимназија","Београд","Славиша Весић",0,0,7,7,0,14]
["Александар Поповић","не","Гимназија Параћин","Параћин","Предраг Милошевић",3,3,0,6,2,14]
["Милорад Ивковић","Не","Зрењанинска гимназија","Зрењанин","Никола Танкосић",0,5,2,3,2,12]
["Наталија Ивковић","не","Средња школа Блаце","Блаце","Сузана Костадиновић-Јовановић",0,2,2,6,2,12]
["Никола Јанковић","не","Пожаревачка гимназија","Пожаревац","Зорица Алексић",2,0,2,6,0,10]
["Милица Стојановић","не","Гиманзија Приштина","Приштина-Л. Село","Сања Милосављевић",0,5,0,0,5,10]
["Мартин Пошмуга","не","Гимназија \"Бора Станковић\"","Ниш","Жељко Младеновић",0,3,2,0,5,10]
["Дарко Петров","не ","Св. Кирило и Методије","Димитровград","Ратко Манчев",0,0,2,6,2,10]
["Андрија Урошевић","не","Средња школа Блаце","Блаце","Сузана Костадиновић-Јовановић",4,0,0,0,6,10]
["Андреј Митровић","Не","Гимназија\"Јосиф Панчић\"","Бајина Башта","Никола Јовановић",0,4,0,2,4,10]
["Јована Крстић","не","Гимназија \"Светозар Марковић\"","Ниш","Славољуб Митић",0,3,2,2,2,9]
["Живановић Сања","Не","Гимназија\"Јосиф Панчић\"","Бајина Башта","Никола Јовановић",0,2,1,6,0,9]
["Милица Димитријевић","не","Средња школа Блаце","Блаце","Сузана Костадиновић-Јовановић",3,0,0,1,4,8]
["Раша Главашевић","не","Гимназија \"Светозар Марковић\"","Ниш","Славољуб Митић",0,0,0,4,2,6]
["Душица Спасић","не","Средња школа Блаце","Блаце","Сузана Костадиновић-Јовановић",3,0,0,1,2,6]
["Милош Крстић","не","Техничка школа Никола Тесла","Костолац","Лазар Станић",0,0,3,0,2,5]
["Огњен Богдановић","НЕ","СШ \"22 октобар\"","Жабаљ","Васа Вучуревић",0,2,3,0,0,5]
["Весна Јовановић","не","Прва крагујевачка гимназија","Крагујевац","Ана Марковић",0,2,0,0,3,5]
["Милан Стаменић","Не","Гимназија\"Јосиф Панчић\"","Бајина Башта","Никола Јовановић",0,0,1,2,2,5]
["Коста Ракић","НЕ","Књажевачка гимназија","Књажевац","Милијан Срејић",0,0,2,2,0,4]
["Никола Новаковић","Не","Гимназија\"Јосиф Панчић\"","Бајина Башта","Никола Јовановић",0,1,1,2,0,4]
["Акош Пинтер","НЕ","Гимназија \"С. Марковић\"","Суботица","Габор Биач",0,0,1,0,2,3]
["Никола Јањатов","не","Гимназија Нови Кнежевац","Нови Кнежевац","Неда Кутањац",0,3,0,0,0,3]
["Марко Хаџи Ристић","не","Осма београдска гимназија","Београд","Славица Златановић",0,2,0,0,0,2]
["Драгић Владан","не","Гимназија \"Вук Караџић\"","Лозница","Станковић Драган",0,0,0,0,0,{"$f":"SUM(F135:J135)","v":0}]
["Аница Арсић","не","Шабачка гимназија","Шабац","Снежана Вуковић",0,0,0,0,0,0]
["Петра Жикић","не","Гимназија \"Светозар Марковић\"","Ниш","Славољуб Митић",0,0,0,0,0,0]
["Тамаш Валтнер","НЕ","Гимназија и економска школа \"Д. Обрадовић\"","Бачка Топола","Петер Фараго",0,0,0,0,0,0]

{"sheet":"3. razred bozoni","index":5,"n_rows":63,"n_cols":12,"rows_kept":63,"merged":[[0,1,0,13],[3,1,3,3],[4,7,4,12]]}
[null,"ТРЕЋИ  РАЗРЕД БОЗОНИ"]
[]
[]
[]
[{"$nulls":7},"Освојено бодова (ненормираних)"]
["Презиме и име","посебно\nодељење\n(ДА / НЕ)","Назив школе","Место","Име и презиме\nнаставника","Зад.1","Зад.2","Зад.3","Зад.4","Зад.5","Ук.","Награда"]
["Данило Тонић","ДА","Гимназија","Краљево","Драгана Милуновић",20,20,15,20,20,{"$f":"SUM(F7:J7)","v":95}]
["Стефан Степановић","ДА","Математичка гимназија","Београд",null,20,20,14,20,20,{"$f":"SUM(F8:J8)","v":94}]
["Андреј Јаковљевић","да","Математичка гимназија","Београд","Иван Станић",20,20,19,9,20,88]
["Милан Цупаћ","да","Математичка гимназија","Београд","Иван Станић",20,20,18,9,20,87]
["Богдан Раонић","да","Математичка гимназија","Београд","Иван Станић",20,6,20,19,20,85]
["Михаило Грбић","ДА","Математичка гимназија","Београд",null,20,20,11,15,18,84]
["Срђан Радовић","ДА","Гимназија „ Ј.Ј.Змај“","Нови Сад","Имре Гут",20,20,18,5,20,83]
["Урош Миленковић","да","Математичка гимназија","Београд","Иван Станић",20,20,3,19,20,82]
["Катарина Вукосављевић","да","Математичка гимназија","Београд","Наташа Чалуковић",20,20,7,17,17,81]
["Александар Ристивојевић","да","Математичка гимназија","Београд","Иван Станић",20,16,16,10,19,81]
["Марко Лисичић","да","Математичка гимназија","Београд","Драгица Ивковић",20,17,6,18,20,81]
["Момчило Топаловић","да","Математичка гимназија","Београд","Иван Станић",11,20,17,15,17,80]
["Матија Додовић","ДА","Ваљевска гимназија","Ваљево","Дејан Ђокић",18,20,3,20,19,80]
["Милица Божанић","да","Математичка гимназија","Београд","Наташа Чалуковић",20,17,14,11,17,79]
["Марко Јовановић","ДА","Гимназија Краљево","Краљево",null,20,20,15,8,16,79]
["Срђан Ранђеловић","да","Математичка гимназија","Београд","Зоран Николић",15,19,17,12,15,78]
["Јелена Ристић","да","Математичка гимназија","Београд","Иван Станић",20,20,5,11,18,74]
["Никола Мијаиловић","да","Прва крагујевачка гимназија","Крагујевац","Катарина Ђорђевић",20,20,3,11,20,74]
["Ђорђе Ступар","ДА","Гимназија „ Ј.Ј.Змај“","Нови Сад","Имре Гут",20,14,14,4,20,72]
["Дамјан Денић","да","Математичка гимназија","Београд","Иван Станић",2,6,18,20,20,66]
["Лазар Радојевић","да","Математичка гимназија","Београд","Иван Станић",20,6,7,10,20,63]
["Александар Милосављевић","да","Гимназија \"Светозар Марковић\"","Ниш","Јелена Ђорђевић",20,20,10,12,0,62]
["Никола Јешић","да","Математичка гимназија","Београд","Иван Станић",12,20,4,5,20,61]
["Павле Радивојевић","да","Гимназија \"Светозар Марковић\"","Ниш","Јелена Ђорђевић",0,19,18,4,20,61]
["Миа Мијовић","да","Математичка гимназија","Београд","Иван Станић",19,6,4,17,14,60]
["Иван Милинковић","ДА","Ваљевска гимназија","Ваљево","Дејан Ђокић",3,17,6,14,20,60]
["Исидора Раденковић","да","Математичка гимназија","Београд","Иван Станић",20,7,3,11,18,59]
["Слободан Јенко","да","Математичка гимназија","Београд","Иван Станић",20,4,2,16,16,58]
["Анастасија Илић","да","Математичка гимназија","Београд","Иван Станић",20,4,9,11,13,57]
["Марко Пушац","ДА","Гимназија „ Ј.Ј.Змај“","Нови Сад","Имре Гут",13,8,20,0,16,57]
["Данило Којић","да","Математичка гимназија","Београд","Зоран Николић",20,4,3,11,18,56]
["Софија Миличић","да","Прва крагујевачка гимназија","Крагујевац","Катарина Ђорђевић",3,15,3,11,20,52]
["Илија Анастасијевић","ДА","Математичка гимназија","Београд",null,8,15,8,0,18,49]
["Марија Огњеновић","ДА","Ваљевска гимназија","Ваљево","Дејан Ђокић",0,19,8,14,7,48]
["Jeлена Шпегар","ДА","Математичка гимназија","Београд",null,18,7,10,7,5,47]
["Андрија Ђурић","да","Математичка гимназија","Београд","Зоран Николић",8,6,20,7,2,43]
["Александар Максимовић","да","Прва крагујевачка гимназија","Крагујевац","Катарина Ђорђевић",1,18,0,6,18,43]
["Филип Дамњановић","ДА","Ваљевска гимназија","Ваљево","Дејан Ђокић",0,17,7,10,5,39]
["Ирена Докмановић","да","Математичка гимназија","Београд","Наташа Чалуковић",20,4,2,9,3,38]
["Николај Великинац","да","Математичка гимназија","Београд","Иван Станић",17,6,5,0,10,38]
["Алекса Јовановић","ДА","Гимназија","Краљево","Драгана Милуновић",7,5,4,2,20,38]
["Бојана Ивић","да","Математичка гимназија","Београд","Иван Станић",7,4,4,11,4,30]
["Даница Бандовић","ДА","Гимназија","Краљево","Драгана Милуновић",0,3,5,20,2,30]
["Алекса Пешкир","да","Математичка гимназија","Београд","Иван Станић",0,19,3,2,4,28]
["Софија Миљковић","да","Математичка гимназија","Београд","Драгица Ивковић",11,4,7,2,3,27]
["Богдан Бадовинац","ДА","Ваљевска гимназија","Ваљево","Дејан Ђокић",0,19,0,7,0,26]
["Дејан Тодоровић","да","Гимназија \"Светозар Марковић\"","Ниш","Љиљана Костић",18,4,3,0,1,26]
["Лука Стојановић","ДА","Гимназија","Краљево","Драгана Милуновић",0,5,0,20,0,25]
["Диана Секулић","ДА","Јован Јовановић Змај","Нови Сад",null,0,5,2,9,7,23]
["Матеја Гојак","да","Прва крагујевачка гимназија","Крагујевац","Катарина Ђорђевић",5,4,0,0,14,23]
["Марко Раденковић","да","Гимназија \"Светозар Марковић\"","Ниш","Јелена Ђорђевић",1,16,2,2,1,22]
["Искра Сеничић","ДА","Гимназија","Краљево","Драгана Милуновић",0,5,0,13,2,20]
["Данило Николић","да","Прва крагујевачка гимназија","Крагујевац","Катарина Ђорђевић",0,4,1,11,0,16]
["Комнен Кнежевић","да","Прва крагујевачка гимназија","Крагујевац","Катарина Ђорђевић",1,4,0,4,5,14]
["Филип Николић","да","Гимназија \"Светозар Марковић\"","Ниш","Јелена Ђорђевић",0,2,2,6,0,10]
["Тамаш Илеш","да","Гимназија \"Бољаи\"","Сента","Емеше Нађ Абоњи",1,1,0,0,0,2]
["Марија Славујац","да","Прва крагујевачка гимназија","Крагујевац","Катарина Ђорђевић",0,0,0,0,0,0]

{"sheet":"4. razred fermioin","index":6,"n_rows":105,"n_cols":12,"rows_kept":105,"merged":[[0,0,0,12],[3,0,3,2],[4,6,4,11]]}
["ЧЕТВРТИ  РАЗРЕД ФЕРМИОНИ"]
[]
[]
[]
[{"$nulls":6},"Освојено бодова (ненормираних)"]
["Име и презиме","посебно\nодељење\n(ДА / НЕ)","Назив школе","Место","Име и презиме\nнаставника","Зад.1","Зад.2","Зад.3","Зад.4","Зад.5","Ук.","Награда"]
["Лазар Митровић","не","Пожаревачка гимназија","Пожаревац","Маја Ј Глигоријевић",20,20,20,20,20,{"$f":"SUM(F7:J7)","v":100}]
["Никола Бугарин","не","Гимназија \"Бора Станковић\"","Бор","Горан Марковић",20,20,17,20,20,97]
["Војислав Томашевић","не ","IX гимназија “Михаило Петровић – Алас”","Нови Београд","Жељко Цветић",20,19,16,20,20,95]
["Марта Бошњак ","НЕ","Гимназија \"Урош Предић\"","Панчево","Зорица Алексић",16.5,20,18,20,20,94.5]
["Синиша Милошевић","не ","Рачунарска гимназија","Београд","Наташа Чалуковић",20,18,16,20,20,94]
["Вукашин Божић","не","Шабачка гимназија","Шабац","Мирко Нагл",19,20,15,20,19,93]
["Михаило Ђорђевић","НЕ","Гимназија \"Урош Предић\"","Панчево","Борислав Познатов",20,20,14,18,20,92]
["Александар Симић","не","Гимназија \" Бора Станковић \"","Врање","Драган Ђорђевић",20,20,15,20,17,92]
["Павле Величковић","НЕ","Гимназија Зајечар","Зајечар","Александар Марковић",20,16.6,15,18,20,89.6]
["Николина Бунијевац             ","не ","Тринаеста београдска гимназија","Београд","Небојша Дамјановић",20,18,9,20,20,87]
["Петар Јуковић","не","Гимназија","Чачак","Ирена Симовић",20,20,9,18,20,87]
["Бурмазовић Ивана","не","Гимназија","Лозница","Мирослав Ристановић",19,5,20,20,20,84]
["Андреј Кукурузар","НЕ","Гимназија \"Вељко Петровић\"","Сомбор","Љиљана Мијатовић",5,20,17,20,20,82]
["Лазар Стојановић","не ","14. гимназија","Београд","Радојка Станчић",20,20,16,4,20,80]
["Милован Лазаревић","не","Гимназија \"Милош Савковић\"","Аранђеловац","Далибор Делибашић",3,20,15,20,20,78]
["Урош Стојиљковић","НЕ","Гимназија \"Свети Сава\"","Пожега","Иван Смиљанић",0,18,20,19,20,77]
["Дарко Сретеновић","не ","Четврта гимназија","Београд","Јелена Здравковић",19,2,16,20,18,75]
["Јанко Пашајлић","НЕ","Гимназија ","Рашка","Ирена Мутавџић",20,10,5,20,20,75]
["Душан Крмар","НЕ","Гимназија „ Ј.Ј.Змај“","Нови Сад","Тијана Јоцић",20,0,15,19,20,74]
["Алекса Стојковић","НЕ","Гимназија \"Исидора Секулић\"","Нови Сад","Јован Проданов",19,18,12,5,20,74]
["Алекса Станковић","не","Гимназија Крушевац","Крушевац","Добривоје Грчак",18,15,15,16,10,74]
["Владан Ковачевић","НЕ","Гимназија \"С. Марковић\"","Суботица","Мирко Киселички",20,18,20,0,15,73]
["Павле Радојковић","не","Гимназија Параћин","Параћин","Предраг Милошевић",18,15,17,1,20,71]
["Ања Ђајић                  ","не ","Тринаеста београдска гимназија","Београд","Романа Црнковић",20,4,7,19,20,70]
["Душан Торбица","не ","Осма београдска гимназија","Београд","Славица Златановић",14,0,16,19,20,69]
["Никола Грбић","не ","Гимназија Младеновац","Младеновац","Данијела Станојевић",19,18,7,18,7,69]
["Андреј Танко ","НЕ","Гимназија \"Урош Предић\"","Панчево","Борислав Познатов",0,19,20,20,10,69]
["Марко Марковић","не","Средња школа Свилајнац","Свилајнац","Ратомир Савић",20,2,15,11,20,68]
["Душан Илић","не","Гимназија Пирот","Пирот","Мирјана Еленков",20,20,3,4,20,67]
["Михаило Грбић","НЕ","Гимназија Зајечар","Зајечар","Александар Марковић",7,5,16,18,20,66]
["Богдан Бебић","не ","14. гимназија","Београд","Радојка Станчић",17,0,13,20,15,65]
["Матија Јовановић","не","Гимназија \"Светозар Марковић\"","Јагодина","Љиљана Николић",20,20,8,6,11,65]
["Димитрије Милошевић","не","Гимназија Пирот","Пирот","Мирјана Еленков",20,20,0,4,20,{"$f":"SUM(F39:J39)","v":64}]
["Ана Бојић","НЕ","Гимназија „ Ј.Ј.Змај“","Нови Сад","Снежана Булајић",20,3,20,0,20,63]
["Иван Кукркић","не","Ужичка гимназија","Ужице","Цмиљка Васовић",0,13,10,18,20,61]
["Андреј Зељковић","не ","Четврта гимназија","Београд","Јелена Здравковић",15,0,20,4,20,59]
["Анђелија Стојановић","не","Пожаревачка гимназија","Пожаревац","Маја Ј Глигоријевић",19,5,2,20,12,58]
["Давид Несторовић","Не","Пријепољска гимназија","Пријепоље","Иван Луковић",19,18,4,0,16,57]
["Емилија Марјановић","не","Прав крагујевачка гимназија","Крагујевац","Драган Карајовић",20,0,2,14,19,55]
["Лука Кљајић","Не","Зрењанинска гимназија","Зрењанин","Никола Танкосић",20,7,6,15,5,53]
["Лазар Лазаревић","не ","Пета београдска гимназија","Београд","Јасмина Јешић",14,3,16,0,19,52]
["Ана Кнежевић","не","Гимназија","Чачак","Ирена Симовић",20,0,2,10,20,52]
["Милица Јефтовић","не ","Прва београдска гимназија","Београд","Чедо Шкорић",20,2,5,4,20,51]
["Јанковић Василије","не","Гимназија","Чачак","Ирена Симовић",20,3,3,0,20,46]
["Савић Кристијан","не","Гимназија \"Светозар Марковић\"","Јагодина","Славица Тодоровић",3,3,15,5,20,46]
["Ленка Брестовачки","НЕ","Бачко",null,null,17,4,2,0,20,43]
["Филип Нешковић","не ","14. гимназија","Београд","Радојка Станчић",0,0,0,20,20,40]
["Сања Самарџија","не ","Земунска гимназија","Земун","Биљана Стојичић",10,2,3,5,20,40]
["Мина Марковић","НЕ","Ваљевска гимназија","Ваљево","Оливера Црнобрња",10,5,5,0,20,40]
["Никола Аћимовић","не","Шабачка гимназија","Шабац","Мирко Нагл",0,1,2,17,20,40]
["Андријана Никић","не","Св. Кирило и Методије","Димитровград","Ратко Манчев",20,0,10,4,5,39]
["Лидија Гајиновић","НЕ","Гимназија „ Ј.Ј.Змај“","Нови Сад","Ненад Павловић, Тијана Јоцић",7,0,18,6,5,36]
["Никола Панић","не","Гимназија Пирот","Пирот","Мирјана Еленков",0,10,6,0,20,36]
["Анита Барна","НЕ","СШ \"22 октобар\"","Жабаљ","Васа Вучуревић",0,3,15,0,15,33]
["Ервин Секе","НЕ","Зрењанинска гимназија","Зрењанин",null,0,5,9,0,19,33]
["Радомир Врањевац","НЕ","Гимназија \"Свети Сава\"","Пожега","Иван Смиљанић",3,0,20,0,10,33]
["Филип Бакић","не ","14. гимназија","Београд","Радојка Станчић",14,0,6,3,8,31]
["Љубица Гуглета","НЕ","Гимназија „ Ј.Ј.Змај“","Нови Сад","Ненад Павловић",0,3,5,4,19,31]
["Михаило Танасић","не","Шабачка гимназија","Шабац","Мирко Нагл",19,0,0,12,0,31]
["Милош Московљевић","не","Гимназија Крушевац","Крушевац","Нада Савић",2,3,20,0,5,30]
["Влада Бељански","не ","14. гимназија","Београд","Мира Новковић Кљајић",9,0,0,0,20,29]
["Аксентије Стевановић","не","Средња школа Свилајнац","Свилајнац","Ратомир Савић",0,5,2,1,20,28]
["Валентина Бујић","не ","Земунска гимназија","Земун","Јелена Филиповић",14,0,5,0,8,27]
["Срђан Драгутиновић","Не","Ужичка гимназија","Ужице","Цмиљка Васовић",0,0,12,0,15,27]
["Невена Срдић","НЕ","Гимназија \"С. Марковић\"","Суботица","Мирко Киселички",20,0,0,0,5,{"$f":"SUM(F71:J71)","v":25}]
["Горана Станисављевић","не ","Прва београдска гимназија","Београд","Чедо Шкорић",13,0,6,5,0,24]
["Јована Павић                            ","не ","Тринаеста београдска гимназија","Београд","Небојша Дамјановић",0,0,0,4,20,24]
["Снежана Козарев","НЕ","СШ \"22 октобар\"","Жабаљ","Васа Вучуревић",3,0,0,0,20,23]
["Младен Милосављевић","не","Гимназија Крушевац","Крушевац","Добривоје Грчак",1,3,1,0,18,23]
["Милица Новичић","не ","Осма београдска гимназија","Београд","Татјана Јоцић",0,0,0,0,20,20]
["Ранко Рељић","НЕ","Гимназија \"С. Марковић\"","Суботица","Мирко Киселички",20,0,0,0,0,20]
["Дејан Јовановић","Не","Гимназија \" Јосиф Панчић\"","Бајина Башта","Никола Јовановић",0,1,0,0,19,20]
["Јован Дмитровић","не","Гимназија Таковски устанак","Горњи Милановац","Ј.Станковић",3,0,2,0,14,19]
["Ђорђе Милановић","не","Гимназија \"Бора Станковић\"","Ниш","Снежана Јанковић",3,3,0,11.4,0,17.4]
["Данилко Вујасин","НЕ","Гимназија „ Ј.Ј.Змај“","Нови Сад","Тијана Јоцић",0,0,12,0,5,17]
["Бранислава Јанковић ","НЕ","Гимназија „ Лаза Костић“","Нови Сад","Славица Трнинић",7,3,0,0,5,15]
["Исидора Теофиловић              ","не ","Тринаеста београдска гимназија","Београд","Небојша Дамјановић",3,3,5,0,3,14]
["Богдан Петровић","не ","14. гимназија","Београд","Мира Кљајић",0,0,0,0,12,12]
["Виктор Марковић","не","Гимназија Таковски устанак","Горњи Милановац","Срђан Бабић",3,3,2,4,0,12]
["Мина Милић","не","Пожаревачка гимназија","Пожаревац","Зорица Алексић",3,0,2,1,5,11]
["Стефан Стојановић","не","Пожаревачка гимназија","Пожаревац","Маја Ј Глигоријевић",0,0,0,0,10,10]
["Јелена Радојковић","НЕ","Средња школа \"Никола Тесла\"","Лепосавић","Дејан Краговић",3,3,0,4,0,10]
["Анамариа Мишков","не","Гимназија \"Душан Васињев\"","Кикинда","Мариа Франциа",7,0,0,0,3,10]
["Данило Дабовић","не ","Прва београдска гимназија","Београд","Чедо Шкорић",3,0,0,0,5,8]
["Марија Стојановић","НЕ","14.Београдска гимназија","Београд",null,0,0,2,0,5,7]
["Милош Михајиловић","НЕ","Гимназија \"Вељко Петровић\"","Сомбор","Љиљана Мијатовић",0,0,0,0,7,7]
["Љубомир Исаиловић","не ","Пета београдска гимназија","Београд","Дивна Јовановић",0,5,0,0,1,6]
["Елвис Поломи","не","Гимназија Таковски устанак","Горњи Милановац","Ј.Станковић",0,0,0,0,6,6]
["Лука Огњановац","не ","14. гимназија","Београд","Мира Новковић Кљајић",0,0,0,0,5,5]
["Бела Вајда","НЕ","ЕТШ \"Михајло Пупин\"","Нови Сад","Александар Радукин, Миодраг Затезало",0,0,0,0,5,5]
["Никола Станковић","не","Гимназија у Ћуприји","Ћуприја","Славица Илић",0,0,0,0,4,4]
["Јаков Рончић","не ","Четврта гимназија","Београд","Јелена Здравковић",0,0,0,0,2,2]
["Маја Станојевић","не","Пожаревачка гимназија","Пожаревац","Зорица Алексић",0,0,2,0,0,2]
["Александар Вићић","не","Средња школа Варварин","Варварин","Велимир Стојадиновић",0,0,0,0,2,2]
["Алекса Милетић","не","Средња школа Варварин","Варварин","Велимир Стојадиновић",0,0,0,0,2,2]
["Воштић Спасоје","не","Гимназија","Чачак","Ирена Јокић",0,0,1,0,0,1]
["Димитрије Уторник","НЕ","Гимназија „ Ј.Ј.Змај“","Нови Сад","Ненад Павловић",0,0,0,0,0,{"$f":"SUM(F103:J103)","v":0}]
["Александар Вујиновић","НЕ","Гимназија „ Ј.Ј.Змај“","Нови Сад","Ненад Павловић",0,0,0,0,0,0]
["Данијел Томић","не","Средња школа Варварин","Варварин","Велимир Стојадиновић",0,0,0,0,0,0]

{"sheet":"4. razred bozoni","index":7,"n_rows":65,"n_cols":12,"rows_kept":65,"merged":[[0,0,0,12],[3,0,3,2],[4,6,4,11]]}
["ЧЕТВРТИ  РАЗРЕД БОЗОНИ"]
[]
[]
[]
[{"$nulls":6},"Освојено бодова (ненормираних)"]
["Презиме и име","посебно\nодељење\n(ДА / НЕ)","Назив школе","Место","Име и презиме\nнаставника","Зад.1","Зад.2","Зад.3","Зад.4","Зад.5","Ук.","Награда"]
["Марко Медведев","да","Математичка гимназија","Београд","Иван Станић",20,20,20,20,20,{"$f":"SUM(F7:J7)","v":100}]
["Марко Шушњар","да","Математичка гимназија","Београд","Наташа Чалуковић",20,18,20,20,20,98]
["Тамара Бојанић","ДА","Гимназија „ Ј.Ј.Змај“","Нови Сад","Имре Гут",20,20,18,20,20,98]
["Предраг Цветковић","да","Гимназија \"Светозар Марковић\"","Ниш","Љиљана Костић",20,18,20,20,20,98]
["Катарина Цимеша","да","Математичка гимназија","Београд","Наташа Чалуковић",20,20,15,20,20,95]
["Новак Станојевић","да","Гимназија \"Светозар Марковић\"","Ниш","Љиљана Костић",20,20,20,14.4,20,94.4]
["Едвин Маид","да","Математичка гимназија","Београд","Катарина Матић",20,20,20,15,19,94]
["Сташа Костић","да","Математичка гимназија","Београд","Наташа Чалуковић",20,18,15,20,20,93]
["Душан Ђорђевић","да","Математичка гимназија","Београд","Наташа Чалуковић",20,18,20,12,20,90]
["Дарко Голубовић","да","Математичка гимназија","Београд","Драгица Ивковић",20,20,20,15,15,90]
["Вук Радовић","да","Математичка гимназија","Београд","Катарина Матић",20,20,20,13,16,89]
["Александар Станојчић","да","Математичка гимназија","Београд","Наташа Чалуковић",20,18,20,7,20,85]
["Катарина Петровић","да","Математичка гимназија","Београд","Наташа Чалуковић",20,19,15,8,20,82]
["Марко Неранчић","ДА","Гимназија „ Ј.Ј.Змај“","Нови Сад","Срђан Ракић",19,20,19,4,20,82]
["Богдан Станојевић","да","Гимназија \"Светозар Марковић\"","Ниш","Љиљана Костић",20,18,20,4,19,81]
["Филип Јовић","ДА","Гимназија „ Ј.Ј.Змај“","Нови Сад","Срђан Ракић",19,20,19,2,20,80]
["Анђела Костић","да","Математичка гимназија","Београд","Наташа Чалуковић",20,18,15,5,20,78]
["Тривко Кукољ","ДА","Гимназија „ Ј.Ј.Змај“","Нови Сад","Срђан Ракић",20,20,16,6,11,73]
["Никола Бебић","ДА","Гимназија „ Ј.Ј.Змај“","Нови Сад","Срђан Ракић",13,20,20,6,11,70]
["Данијел Ђорђевић","да","Математичка гимназија","Београд","Наташа Чалуковић",20,14,15,10,9,68]
["Никола Милорадовић","ДА","Јован Јовановић Змај","Нови Сад",null,17,15,7,18,6,63]
["Игор Божиловић","да","Гимназија \"Светозар Марковић\"","Ниш","Љиљана Костић",20,20,15,6,2,63]
["Милица Перић","да","Гимназија \"Светозар Марковић\"","Ниш","Драгољуб Димитријевић",20,10,14,11,7,62]
["Милица Крстовић","да","Математичка гимназија","Београд","Катарина Матић",15,18,20,8,0,61]
["Дино Ћеримагић","да","Математичка гимназија","Београд","Наташа Чалуковић",16,18,14,12,0,60]
["Филип Ковачевић","да","Математичка гимназија","Београд","Наташа Чалуковић",19,5,15,20,0,59]
["Вук Вуковић","да","Математичка гимназија","Београд","Катарина Матић",19,18,14,7,0,58]
["Даница Зечевић","да","Математичка гимназија","Београд","Наташа Чалуковић",20,18,15,5,0,58]
["Владимир Миленковић","да","Математичка гимназија","Београд","Наташа Чалуковић",15,19,15,7,2,58]
["Сара Живковић","да","Прав крагујевачка гимназија","Крагујевац","Сузана Арнаут",18,5,18,14,0,55]
["Бранко Радовић","да","Математичка гимназија","Београд","Драгица Ивковић",3,17,16,16,2,54]
["Sean Alexander Collins","да","Математичка гимназија","Београд","Катарина Матић",4,17,20,10,1,52]
["Александар Милошевић","да","Математичка гимназија","Београд","Наташа Чалуковић",13,18,16,5,0,{"$f":"SUM(F39:J39)","v":52}]
["Антонина Вукобрат","да","Математичка гимназија","Београд","Катарина Матић",20,10,15,2,0,47]
["Божидар Обрадовић","ДА","Математичка гимназија","Београд",null,18,5,16,2,6,47]
["Душан Живановић","да","Гимназија \"Светозар Марковић\"","Ниш","Вера Прокић",19.5,8,15,0,4,46.5]
["Јана Вучковић","да","Математичка гимназија","Београд","Наташа Чалуковић",3,18,15,8,0,44]
["Ђорђе Чикић","да","Гимназија \"Светозар Марковић\"","Ниш","Вера Прокић",20,0,2,3,16,41]
["Милена Симић","да","Гимназија \"Светозар Марковић\"","Ниш","Драгољуб Димитријевић",16.3,1,7,0,16,40.3]
["Јован Спасојевић","да","Математичка гимназија","Београд","Катарина Матић",16,2,5,7,3,33]
["Данило Вујаковић","да","Математичка гимназија","Београд","Јовица Милисављевић",0,17,5,7,4,33]
["Никола Косановић","да","Математичка гимназија","Београд","Јовица Милисављевић",0,5,18,5,4,32]
["Никола Миливојевић","да","Математичка гимназија","Београд","Катарина Матић",0,0,19,3,8,30]
["Нина Орловић","ДА","Гимназија „ Ј.Ј.Змај“","Нови Сад","Срђан Ракић",10,8,5,5,0,28]
["Милош Рашић","да","Математичка гимназија","Београд","Драгица Ивковић",0,0,20,7,0,27]
["Никола Мишковић","да","Математичка гимназија","Београд","Наташа Чалуковић",0,2,19,5,0,26]
["Андрија Новаковић","ДА","Гимназија ","Краљево","Владан Пејовић",0,5,15,2,4,26]
["Никола Голеш","ДА","Гимназија „ Ј.Ј.Змај“","Нови Сад","Срђан Ракић",0,20,4,0,0,24]
["Урош Исаковић","да","Математичка гимназија","Београд","Драгица Ивковић",0,0,20,2,0,22]
["Милоје Јоксимовић","да","Математичка гимназија","Београд","Драгица Ивковић",1,0,14,5,0,20]
["Димитрије Марић","ДА","Гимназија ","Краљево","Владан Пејовић",0,5,3,10,0,18]
["Стефан Ђорђевић","да","Математичка гимназија","Београд","Наташа Чалуковић",0,5,2,5,2,14]
["Раденко Пејић","ДА","Ваљевска гимназија","Ваљево","Оливера Црнобрња",0,4,5,5,0,14]
["Адријана Јовановић","ДА","Гимназија ","Краљево","Владан Пејовић",0,5,0,2,7,14]
["Алекса Бошковић","да","Гимназија \"Светозар Марковић\"","Ниш","Вера Прокић",0,0,0,0,11,11]
["Марко Сеизовић","ДА","Гимназија ","Краљево","Владан Пејовић",0,0,0,5,0,5]
["Андрија Колић","да","Гимназија \"Светозар Марковић\"","Ниш","Вера Прокић",3,0,0,0,0,3]
["Александар Пешић","да","Гимназија \"Светозар Марковић\"","Ниш","Вера Прокић",0,0,0,0,0,0]
["Ђорђе Ристић","да","Гимназија \"Светозар Марковић\"","Ниш","Вера Прокић",0,0,0,0,0,0]